Workbook

Sheet 2022
A1: 附件1
A2: 三江县2022年度资金项目登记表
A4: 填报单位（盖章）：三江侗族自治县乡村振兴局 | S4: 审核人签字： | AE4: 单位负责人签字：
A5: 序号 | B5: 县区 | C5: 项目类型 | D5: 项目二级类型 | E5: 项目子类型 | F5: 项目名称 （与项目库名称保持一致） | G5: 项目建设情况 | O5: 项目实际资金投入情况（万元） | AD5: 是否形成可固化资产 | AE5: 形成资产具体形态 | AF5: 部门资产审核意见 | AH5: 备注
G6: 项目库项目编号 | H6: 建设内容 | I6: 建设地点 | K6: 项目建设单位 | L6: 构建年度 | M6: 具体建设时间 | N6: 项目建设完工时间 | O6: 资金支付年度 | P6: 资金类型（万元） | Z6: 资金来源（万元）
I7: 乡镇 | J7: 村 | P7: 小计 | Q7: 财政衔接资金 | R7: 统筹涉农整合资金（除财政衔接资金外） | S7: 粤桂帮扶资金 | T7: 中央补短板资金 | U7: 政府新增债券资金 | V7: 财政其他资金 | W7: 其他帮扶资金 | X7: 自筹资金 | Y7: 其他 | Z7: 中央 | AA7: 自治区 | AB7: 市级 | AC7: 县级 | AF7: 是否移交 | AG7: 拟登记资产类型（到户类资产、公益性资产、经营性资产）
A8: 1 | B8: 2 | C8: 3 | E8: 4 | G8: 6 | H8: 7 | I8: 8 | J8: 9 | K8: 10 | L8: 11 | M8: 12 | O8: 13 | P8: 14 | Q8: 15 | R8: 16 | S8: 17 | T8: 18 | U8: 19 | V8: 20 | W8: 21 | X8: 22 | Y8: 23 | Z8: 24 | AA8: 25 | AB8: 26 | AC8: 27 | AD8: 28 | AE8: 29 | AF8: 30 | AG8: 31 | AH8: 33 | XFB8: =SUM(A8:XFA8) -> 524
F9: 合 计 | P9: =SUM(P10:P530) -> 107714.3735 | Q9: =SUM(Q10:Q530) -> 84710.9348 | R9: 1782 | S9: 10383.6908 | T9: 2200 | W9: 637.7479 | Y9: 8000 | Z9: 42405.8953 | AA9: 32479.8444 | AB9: 21262.5294 | AC9: 11566.1044
A10: 1 | B10: 三江县 | C10: 产业发展 | D10: 生产项目 | E10: 种植业基地 | F10: 三江侗族自治县_产业项目_三江县独峒镇小黄牛养殖基地项目 | G10: 5100000951117653 | H10: 新建一个占地67亩的黄牛养殖基地，包含牛棚、工作用房、园区道路等设施，项目建成后，资产归属独峒镇人民政府，项目运营由公司带合作社带动群众共同发展小黄牛养殖上下游产业，进一步提升独峒小黄牛品牌价值。 | I10: 独峒镇 | J10: 岜团村 | K10: 三江县乡村振兴局 | L10: 2021 | M10: 20210802 | N10: 20220324 | O10: 2021 | P10: =SUM(Q10:Y10) -> 1335.8626 | Q10: 1335.8626 | Z10: 801.5 | AC10: 534.3626 | AD10: 是 | AE10: 厂房等基础设施 | AF10: 否 | AG10: 经营性资产 | AH10: 项目2022年用地整改，截至目前未验收。
A11: 2 | B11: 三江县 | C11: 产业发展 | D11: 配套设施项目 | E11: 产业园（区） | F11: 三江侗族自治县_产业项目_三江县易地扶贫搬迁后续扶贫生态产业园项目（易安后扶） | G11: 5100000953250473 | H11: 购置厂房及仓库和购买300亩土地约10000万元；B区地块新建5栋标准厂房、3栋仓库、园区综合服务大楼及附属配套设施；投资约13500万元；A区地块新建标准厂房等。 | I11: 古宜镇 | J11: 南站社区 | K11: 三江县科工贸和信息化局 三江县乡村振兴局 | L11: 2020-2025 | M11: 20200409 | N11: 20221228 | O11: 2020-2022 | P11: 22152.7791 | Q11: 16134.7791 | S11: 3818 | T11: 2200 | Z11: 10151.3839 | AA11: 11786.4013 | AB11: 210 | AC11: 4.9939 | AD11: 是 | AE11: 厂房、仓库等基础设施 | AF11: 是 | AG11: 经营性资产 | AH11: 完成部分结算
A12: 3 | B12: 三江县 | C12: 产业发展 | D12: 生产项目 | E12: 种植业基地 | F12: 三江侗族自治县_产业项目_三江县易地搬迁万亩茶园三产融合综合体项目（易安后扶） | G12: 5100001081425297 | H12: 安装视频采集、传输、储存设备，编制体系APP、信息标记设备。建设产业路、观光步道、地头水柜、绿色防控、茶园节水灌溉，茶叶种植、人工管护、万亩茶园内6个基地的产业路硬化工程，硬化总长度40公里，建设护栏40公里。 | I12: 古宜镇 | J12: 南站社区 | K12: 三江县乡村振兴局 | L12: 2020-2025 | M12: 20200408 | N12: 20221228 | O12: 2020-2022 | P12: 11670.7246 | Q12: 11670.7246 | Z12: 6155.0924 | AA12: 62.8422 | AB12: 5452.79 | AD12: 是 | AE12: 产业路等基础设施 | AF12: 否 | AG12: 经营性资产 | AH12: 未完成结算
A13: 4 | B13: 三江县 | C13: 产业发展 | D13: 生产项目 | E13: 种植业基地 | F13: 三江侗族自治县_产业项目_丹洲镇乡村振兴示范村（带）建设项目 | G13: 5100000988854085 | H13: 打造振兴示范点，对行政村整体风貌进行改造升级，提升丹州古镇乡村旅游 | I13: 丹洲镇 | J13: 丹洲村 | K13: 三江侗族自治县文化旅游投资发展有限责任公司 | L13: 2021 | M13: 20210913 | N13: 20220404 | O13: 2021 | P13: 640.2485 | S13: 640.2485 | AA13: 640.2485 | AD13: 是 | AE13: 公共基础设施 | AF13: 是 | AG13: 经营性资产
A14: 5 | B14: 三江县 | C14: 产业发展 | D14: 生产项目 | E14: 种植业基地 | F14: 三江侗族自治县_产业项目_同乐乡归东村乡村振兴产业提升项目（建设村集体经济茶叶加工厂） | G14: 5100000988855711 | H14: 计划扩大立体套种植葡萄规模约200亩，用于购买水泥柱、包钢丝、地埋、人工、苗木及建设葡萄基地步道等，建设村集体经济茶叶加工厂 | I14: 同乐苗族乡 | J14: 归东村 | K14: 三江县乡村振兴局 | L14: 2021 | M14: 20210818 | N14: 20211224 | O14: 2021 | P14: 219.1444 | S14: 219.1444 | AA14: =S14 -> 219.1444 | AD14: 是 | AE14: 厂房等基础设施 | AF14: 是 | AG14: 经营性资产
A15: 6 | B15: 三江县 | C15: 产业发展 | D15: 生产项目 | E15: 种植业基地 | F15: 三江侗族自治县_产业项目_三江县乡村振兴产业提升项目（同乐乡归东村野生葡萄园建设）（粤桂协作项目） | G15: 5100000988855711 | H15: 计划扩大立体套种植葡萄规模约200亩 | I15: 同乐苗族乡 | J15: 归东村 | K15: 三江县乡村振兴局 | L15: 2021-2022 | M15: 20210818 | N15: 20211224 | O15: 2021-20222 | P15: 319.5532 | S15: 319.5532 | AA15: =S15 -> 319.5532 | AD15: 否 | AE15: 生物类资产 | AF15: 否 | AG15: 到户类资产
A16: 7 | B16: 三江县 | C16: 产业发展 | D16: 生产项目 | E16: 种植业基地 | F16: 三江侗族自治县_产业项目_独峒镇大塘坳农业核心示范区配套项目 | G16: 5100000988858374 | H16: 项目位于独峒镇大塘坳农业核心示范区大门口，修建一个收费停车场，收入扣除运行费用以外，归属村集体经济。 | I16: 独峒镇 | J16: 林略村 | K16: 三江县乡村振兴局 | L16: 2021 | M16: 20210824 | N16: 20220114 | O16: 2021 | P16: =SUM(Q16:Y16) -> 156.0517 | S16: 156.0517 | AA16: 156.0517 | AD16: 是 | AE16: 公共基础设施 | AF16: 是 | AG16: 经营性资产
A17: 8 | B17: 三江县 | C17: 产业发展 | D17: 生产项目 | E17: 种植业基地 | F17: 三江侗族自治县_产业项目_2021年三江县高基乡篦梳村优质稻基地水毁修复二期工程 | G17: 5100000988861446 | H17: 建设规模为长0.58公里 | I17: 高基瑶族乡 | J17: 篦梳村 | K17: 三江县乡村振兴局 | L17: 2021 | M17: 20210809 | N17: 20220105 | O17: 2021 | P17: 156.2247 | Q17: 156.2247 | AA17: 93.8 | AB17: 62.4247 | AD17: 是 | AE17: 水毁修复 | AF17: 是 | AG17: 公益性资产
A18: 9 | B18: 三江县 | C18: 产业发展 | D18: 生产项目 | E18: 休闲农业与乡村旅游 | F18: 三江侗族自治县_产业项目_程阳八寨景区创5A配套项目 | G18: 5100000992035905 | H18: 程阳八寨景区内部修建一个收费停车场，项目建成后，收入扣除运行费用以外，归属村集体经济。 | I18: 林溪镇 | J18: 程阳村 | K18: 三江侗族自治县文化旅游投资发展有限责任公司 | L18: 2021 | M18: 20211012 | N18: 20211225 | O18: 2021 | P18: 200 | S18: 200 | AA18: 200 | AD18: 是 | AE18: 公共基础设施 | AF18: 是 | AG18: 经营性资产
A19: 10 | B19: 三江县 | C19: 产业发展 | D19: 生产项目 | E19: 种植业基地 | F19: 三江侗族自治县_产业项目_2021年三江县洋溪乡高露村中寨屯油茶基地产业路（归巴斗山边龙塘） | G19: 5100001040216302 | H19: 建设规模为长3.276公里，路面宽4.5米。 | I19: 洋溪乡 | J19: 高露村 | K19: 三江县乡村振兴局 | L19: 2021 | M19: 20210902 | N19: 20220124 | O19: 2021 | P19: 98.709 | Q19: 98.709 | AB19: 98.709 | AD19: 是 | AE19: 产业路 | AF19: 是 | AG19: 公益性资产
A20: 11 | B20: 三江县 | C20: 产业发展 | D20: 加工流通项目 | E20: 市场建设和农村物流 | F20: 三江侗族自治县_产业项目_三江县同乐乡村集体综合市场项目 | G20: 5100001081545703 | H20: 建设集体经济厂房，出租给承租方运营，收取租金分给村集体，占地面积883.35㎡，总建筑面积为2680.79㎡。 | I20: 同乐苗族乡 | J20: 同乐村 | K20: 三江侗族自治县文化旅游投资发展有限责任公司 | L20: 2021 | M20: 20210119 | N20: 20211230 | O20: 2021 | P20: 475.0511 | S20: 475.0511 | AA20: 475.0511 | AD20: 是 | AE20: 综合市场 | AF20: 是 | AG20: 经营性资产
A21: 12 | B21: 三江县 | C21: 产业发展 | D21: 生产项目 | E21: 种植业基地 | F21: 三江侗族自治县_产业发展_生产项目_2022年三江县产业以奖代补项目 | G21: 5100001035076615 | H21: 茶叶、优质稻、中药材等种植和鱼等养殖 | I21: 三江侗族自治县 | K21: 三江县农业农村局 | L21: 2022 | M21: 20220301 | N21: 20221210 | O21: 2022 | P21: 3343.6921 | Q21: 3343.6921 | Z21: 3071.5547 | AA21: 262.1713 | AB21: 9.9661 | AD21: 否 | AE21: 生物类资产 | AF21: 否 | AG21: 到户类资产
A22: 13 | B22: 三江县 | C22: 产业发展 | D22: 生产项目 | E22: 种植业基地 | F22: 三江侗族自治县_产业项目_三江县生态产业园护坡葡萄种植基地项目（易安后扶） | G22: 5100001088989730 | H22: 三江县生态产业园护坡葡萄种植基地项目80亩，步道3.295公里，扶手栏杆1773.4米，步道硬化1016.5米，混泥土护栏1270米，方钢护栏263.5米 | I22: 古宜镇 | J22: 南站社区 | K22: 三江县乡村振兴局 | L22: 2022 | M22: 20220326 | N22: 20220810 | O22: 2022 | P22: 161.1935 | Q22: 161.1935 | Z22: 161.1935 | AD22: 是 | AE22: 产业基地建设 | AF22: 是 | AG22: 经营性资产
A23: 14 | B23: 三江县 | C23: 产业发展 | D23: 生产项目 | E23: 种植业基地 | F23: 三江侗族自治县_产业项目_2022年螺蛳粉产业基地项目 | G23: 5100001091863386 | H23: 以奖代补补助螺蛳粉原材料（种植木耳、豆角、麻竹笋和养殖田螺）种养示范基地。 | I23: 三江侗族自治县 | K23: 三江县农业农村局 | L23: 2022 | M23: 20220330 | N23: 20230112 | O23: 2022 | P23: 195.09 | Q23: 195.09 | AB23: 195.09 | AD23: 否 | AE23: 生物类资产 | AF23: 否 | AG23: 到户类资产
A24: 15 | B24: 三江县 | C24: 产业发展 | D24: 生产项目 | E24: 种植业基地 | F24: 三江侗族自治县_产业项目_三江县林溪镇枫木村枫木屯产业路项目（枫木至塘阳） | G24: 5100001093276905 | H24: 三江县林溪镇枫木村枫木屯产业路项目（枫木至塘阳）产业路建设1.4公里，挡土墙232.64立方米 | I24: 林溪镇 | J24: 枫木村 | K24: 三江县乡村振兴局 | L24: 2022 | M24: 20220331 | N24: 20220822 | O24: 2022 | P24: 133.7188 | Q24: 133.7188 | Z24: 133.7188 | AD24: 是 | AE24: 产业路 | AF24: 是 | AG24: 公益性资产
A25: 16 | B25: 三江县 | C25: 产业发展 | D25: 生产项目 | E25: 种植业基地 | F25: 三江侗族自治县_产业项目_三江县林溪镇平岩村林桃油茶基地产业路硬化项目 | G25: 5100001093287290 | H25: 三江县林溪镇平岩村林桃油茶基地产业路硬化项目道路硬化4.768公里 | I25: 林溪镇 | J25: 平岩村 | K25: 三江县乡村振兴局 | L25: 2022 | M25: 20220331 | N25: 20220928 | O25: 2022 | P25: 280 | Q25: 280 | Z25: 70 | AA25: 210 | AD25: 是 | AE25: 产业路 | AF25: 否 | AG25: 公益性资产 | AH25: 未完成结算
A26: 17 | B26: 三江县 | C26: 产业发展 | D26: 生产项目 | E26: 种植业基地 | F26: 三江侗族自治县_产业项目_三江县归斗村归斗屯茶叶基地产业路项目 | G26: 5100001122078245 | H26: 三江县归斗村归斗屯茶叶基地产业路项目新建产业路3.515公里，挡土墙1069立方米 | I26: 良口乡 | J26: 归斗村 | K26: 三江县乡村振兴局 | L26: 2022 | M26: 20220624 | N26: 20221026 | O26: 2022 | P26: 158.6236 | Q26: 158.6236 | Z26: 158.6236 | AD26: 是 | AE26: 产业路 | AF26: 是 | AG26: 公益性资产
A27: 18 | B27: 三江县 | C27: 产业发展 | D27: 生产项目 | E27: 种植业基地 | F27: 三江侗族自治县_产业项目_乡村振兴重点村倾斜支持项目（三江县八江镇马胖村集体经济鱼塘道路硬化和鱼塘加高工程） | G27: 5100001122112426 | H27: 集体经济鱼塘道路硬化100米，路面宽2米。 | I27: 八江镇 | J27: 马胖村 | K27: 三江县乡村振兴局 | L27: 2022 | M27: 20220630 | N27: 20221210 | O27: 2022 | P27: =SUM(Q27:Y27) -> 20 | Q27: 20 | AB27: 20 | AD27: 是 | AE27: 鱼塘 | AF27: 否 | AG27: 经营性资产 | AH27: 未完成结算
A28: 19 | B28: 三江县 | C28: 产业发展 | D28: 生产项目 | E28: 种植业基地 | F28: 三江侗族自治县_产业项目_乡村振兴重点村倾斜支持项目（三江县八江镇归令村归峒屯木耳菌大棚建设项目） | G28: 5100001122112426 | H28: 800平方米木耳菌大棚建设及配套设施 | I28: 八江镇 | J28: 归令村 | K28: 三江县乡村振兴局 | L28: 2022 | M28: 20220630 | N28: 20221210 | O28: 2022 | P28: 20 | Q28: 20 | AB28: 20 | AD28: 是 | AE28: 大棚 | AF28: 否 | AG28: 经营性资产 | AH28: 未完成结算
A29: 20 | B29: 三江县 | C29: 产业发展 | D29: 生产项目 | E29: 种植业基地 | F29: 三江侗族自治县_产业项目_乡村振兴重点村倾斜支持项目（程村乡泗里村泠槽屯三角冲至竹子山竹木产业路建设项目） | G29: 5100001122112426 | H29: 产业路建设3公里 | I29: 程村乡 | J29: 泗里村 | K29: 三江县乡村振兴局 | L29: 2022 | M29: 20220630 | N29: 20221210 | O29: 2022 | P29: 20 | Q29: 20 | AB29: 20 | AD29: 是 | AE29: 产业路 | AF29: 否 | AG29: 公益性资产 | AH29: 未完成结算
A30: 21 | B30: 三江县 | C30: 产业发展 | D30: 生产项目 | E30: 种植业基地 | F30: 三江侗族自治县_产业项目_乡村振兴重点村倾斜支持项目（三江县高基乡拉旦村黄花倒水莲种植基地道路提升项目） | G30: 5100001122112426 | H30: 硬化路长76.8米 | I30: 高基瑶族乡 | J30: 拉旦村 | K30: 三江县乡村振兴局 | L30: 2022 | M30: 20220624 | N30: 20220825 | O30: 2022 | P30: 17.9845 | Q30: 17.9845 | AB30: 17.9845 | AD30: 是 | AE30: 产业路 | AF30: 是 | AG30: 公益性资产
A31: 22 | B31: 三江县 | C31: 产业发展 | D31: 生产项目 | E31: 种植业基地 | F31: 三江侗族自治县_产业项目_乡村振兴重点村倾斜支持项目（三江县高基乡弓江村九岜屯油茶基地产业路提升工程） | G31: 5100001122112426 | H31: 产业路硬化0.32公里 | I31: 高基瑶族乡 | J31: 弓江村 | K31: 三江县乡村振兴局 | L31: 2022 | M31: 20220624 | N31: 20220825 | O31: 2022 | P31: 18.0902 | Q31: 18.0902 | AB31: 18.0902 | AD31: 是 | AE31: 产业路 | AF31: 是 | AG31: 公益性资产
A32: 23 | B32: 三江县 | C32: 产业发展 | D32: 生产项目 | E32: 种植业基地 | F32: 三江侗族自治县_产业项目_乡村振兴重点村倾斜支持项目（三江县富禄乡高岩村大糯种植基地便民桥） | G32: 5100001122112426 | H32: 建立三座便民桥，方便群众出行 | I32: 富禄苗族乡 | J32: 高岩村 | K32: 三江县乡村振兴局 | L32: 2022 | M32: 20220630 | N32: 20221210 | O32: 2022 | P32: 20 | Q32: 20 | AB32: 20 | AD32: 是 | AE32: 桥梁 | AF32: 否 | AG32: 公益性资产 | AH32: 未完成结算
A33: 24 | B33: 三江县 | C33: 产业发展 | D33: 生产项目 | E33: 种植业基地 | F33: 三江侗族自治县_产业项目_乡村振兴重点村倾斜支持项目（三江县富禄乡甲圩村洋报至乌情那边产业路项目） | G33: 5100001122112426 | H33: 产业路建设3.5公里 | I33: 富禄苗族乡 | J33: 甲圩村 | K33: 三江县乡村振兴局 | L33: 2022 | M33: 20220630 | N33: 20221210 | O33: 2022 | P33: 20 | Q33: 20 | AB33: 20 | AD33: 是 | AE33: 产业路 | AF33: 否 | AG33: 公益性资产 | AH33: 未完成结算
A34: 25 | B34: 三江县 | C34: 产业发展 | D34: 生产项目 | E34: 种植业基地 | F34: 三江侗族自治县_产业项目_乡村振兴重点村倾斜支持项目（三江县富禄乡培进上寨至培足产业路水毁修复工程） | G34: 5100001122112426 | H34: 建设规模为长20米，高为6米培进上寨至培足产业路挡土墙。 | I34: 富禄苗族乡 | J34: 培进村 | K34: 三江县乡村振兴局 | L34: 2022 | M34: 20220630 | N34: 20221210 | O34: 2022 | P34: 20 | Q34: 20 | AB34: 20 | AD34: 是 | AE34: 产业路 | AF34: 否 | AG34: 公益性资产 | AH34: 未完成结算
A35: 26 | B35: 三江县 | C35: 产业发展 | D35: 生产项目 | E35: 种植业基地 | F35: 三江侗族自治县_产业项目_乡村振兴重点村倾斜支持项目（三江县老堡乡老巴村家禽养殖基地项目） | G35: 5100001122112426 | H35: 建设老巴村家禽养殖基地，建设养殖钢架棚厂房300平米、围栏、围堰，购置禽苗、食料 | I35: 老堡乡 | J35: 老巴村 | K35: 三江县乡村振兴局 | L35: 2022 | M35: 20220630 | N35: 20221210 | O35: 2022 | P35: 20 | Q35: 20 | AB35: 20 | AD35: 是 | AE35: 养殖基地 | AF35: 否 | AG35: 经营性资产 | AH35: 未完成结算
A36: 27 | B36: 三江县 | C36: 产业发展 | D36: 生产项目 | E36: 种植业基地 | F36: 三江侗族自治县_产业项目_乡村振兴重点村倾斜支持项目（三江县同乐乡孟寨村坳寨屯培高产业路项目） | G36: 5100001122112426 | H36: 建设孟寨村坳寨屯培高产业路路线长度0.1012公里 | I36: 同乐苗族乡 | J36: 孟寨村 | K36: 三江县乡村振兴局 | L36: 2022 | M36: 20220624 | N36: 20220823 | O36: 2022 | P36: 18.0133 | Q36: 18.0133 | AB36: 18.0133 | AD36: 是 | AE36: 产业路 | AF36: 是 | AG36: 公益性资产
A37: 28 | B37: 三江县 | C37: 产业发展 | D37: 生产项目 | E37: 种植业基地 | F37: 三江侗族自治县_产业项目_乡村振兴重点村倾斜支持项目（三江县同乐乡岑甲村岑甲屯良勾产业路项目） | G37: 5100001122112426 | H37: 建设岑甲村岑甲屯良勾产业路2.2公里 | I37: 同乐苗族乡 | J37: 岑甲村 | K37: 三江县乡村振兴局 | L37: 2022 | M37: 20220630 | N37: 20221210 | O37: 2022 | P37: 20 | Q37: 20 | AB37: 20 | AD37: 是 | AE37: 产业路 | AF37: 否 | AG37: 公益性资产 | AH37: 未完成结算
A38: 29 | B38: 三江县 | C38: 产业发展 | D38: 生产项目 | E38: 种植业基地 | F38: 三江侗族自治县_产业项目_乡村振兴重点村倾斜支持项目（三江县同乐乡归东村葡萄产业园提升工程） | G38: 5100001122112426 | H38: 木结构葡萄中转站，占地面积90平方米。 | I38: 同乐苗族乡 | J38: 归东村 | K38: 三江县乡村振兴局 | L38: 2022 | M38: 20220630 | N38: 20221210 | O38: 2022 | P38: 20 | Q38: 20 | AB38: 20 | AD38: 是 | AE38: 步道 | AF38: 否 | AG38: 公益性资产 | AH38: 未完成结算
A39: 30 | B39: 三江县 | C39: 产业发展 | D39: 生产项目 | E39: 种植业基地 | F39: 三江侗族自治县_产业项目_乡村振兴重点村倾斜支持项目（三江县良口乡产口村高贵屯茶叶基地便民步道硬化） | G39: 5100001122112426 | H39: 步道硬化长0.305公里，宽1.2米，厚度10厘米。 | I39: 良口乡 | J39: 产口村 | K39: 三江县乡村振兴局 | L39: 2022 | M39: 20220624 | N39: 20220805 | O39: 2022 | P39: 18.0963 | Q39: 18.0963 | AB39: 18.0963 | AD39: 是 | AE39: 生产道路 | AF39: 是 | AG39: 公益性资产
A40: 31 | B40: 三江县 | C40: 产业发展 | D40: 生产项目 | E40: 种植业基地 | F40: 三江侗族自治县_产业项目_乡村振兴重点村倾斜支持项目（三江县良口乡南寨村下南田园生产路硬化） | G40: 5100001122112426 | H40: 生产路硬化0.378公里，路面宽1.5米，厚0.1米。硬化 | I40: 良口乡 | J40: 南寨村 | K40: 三江县乡村振兴局 | L40: 2022 | M40: 20220624 | N40: 20220822 | O40: 2022 | P40: 17.306 | Q40: 17.306 | AB40: 17.306 | AD40: 是 | AE40: 硬化路 | AF40: 是 | AG40: 公益性资产
A41: 32 | B41: 三江县 | C41: 产业发展 | D41: 生产项目 | E41: 种植业基地 | F41: 三江侗族自治县_产业项目_乡村振兴重点村倾斜支持项目（三江县古宜镇马坪村马坪屯产业路硬化工程） | G41: 5100001122112426 | H41: 产业路硬化长0.313公里，带动周边杉木林1000亩。 | I41: 古宜镇 | J41: 马坪村 | K41: 三江县乡村振兴局 | L41: 2022 | M41: 20220704 | N41: 20220818 | O41: 2022 | P41: 16.2226 | Q41: 16.2226 | AB41: 16.2226 | AD41: 是 | AE41: 硬化路 | AF41: 是 | AG41: 公益性资产
A42: 33 | B42: 三江县 | C42: 产业发展 | D42: 生产项目 | E42: 种植业基地 | F42: 三江侗族自治县_产业项目_乡村振兴重点村倾斜支持项目（三江县丹洲镇红路村山洞屯优质柚子基地灌溉项目） | G42: 5100001122112426 | H42: 地头水柜、灌溉管网铺设 | I42: 丹洲镇 | J42: 红路村 | K42: 三江县乡村振兴局 | L42: 2022 | M42: 20220630 | N42: 20221210 | O42: 2022 | P42: 20 | Q42: 20 | AB42: 20 | AD42: 是 | AE42: 灌溉设施 | AF42: 否 | AG42: 公益性资产 | AH42: 未完成结算
A43: 34 | B43: 三江县 | C43: 产业发展 | D43: 生产项目 | E43: 种植业基地 | F43: 三江侗族自治县_产业项目_乡村振兴重点村倾斜支持项目（三江县和平乡板六村木耳种植基地项目） | G43: 5100001122112426 | H43: 钢架1座，建筑面积374.44平方米 | I43: 和平乡 | J43: 板六村 | K43: 三江县乡村振兴局 | L43: 2022 | M43: 20220624 | N43: 20221028 | O43: 2022 | P43: 18.4684 | Q43: 18.4684 | AB43: 18.4684 | AD43: 是 | AE43: 种植基地 | AF43: 是 | AG43: 经营性资产
A44: 35 | B44: 三江县 | C44: 产业发展 | D44: 生产项目 | E44: 种植业基地 | F44: 三江侗族自治县_产业项目_乡村振兴重点村倾斜支持项目（三江县梅林乡梅林村泗洞屯螺蛳养殖基地基础实施提升） | G44: 5100001122112426 | H44: 田埂长1041米，引水渠长196米，集水井2座，PE管DN 200长30米 | I44: 梅林乡 | J44: 梅林村 | K44: 三江县乡村振兴局 | L44: 2022 | M44: 20220624 | N44: 20221009 | O44: 2022 | P44: 17.292 | Q44: 17.292 | AB44: 17.292 | AD44: 是 | AE44: 养殖基地 | AF44: 是 | AG44: 经营性资产
A45: 36 | B45: 三江县 | C45: 产业发展 | D45: 生产项目 | E45: 种植业基地 | F45: 三江侗族自治县_产业项目_乡村振兴重点村倾斜支持项目（三江县斗江镇思欧村雨塘油茶基地榨油厂配电工程） | G45: 5100001122112426 | H45: 思欧村雨塘油茶基地榨油厂电力变压器1个，高压线500米，电线杆等 | I45: 斗江镇 | J45: 思欧村 | K45: 三江县乡村振兴局 | L45: 2022 | M45: 20220630 | N45: 20221210 | O45: 2022 | P45: 20 | Q45: 20 | AB45: 20 | AD45: 是 | AE45: 配电工程 | AF45: 否 | AG45: 经营性资产 | AH45: 未完成结算
A46: 37 | B46: 三江县 | C46: 产业发展 | D46: 生产项目 | E46: 种植业基地 | F46: 三江侗族自治县_产业项目_乡村振兴重点村倾斜支持项目（三江县林溪镇高友村食用菌（木耳）种植示范基地钢架大棚建设及配套设施建设项目） | G46: 5100001122112426 | H46: 钢架大棚面积300平方米 | I46: 林溪镇 | J46: 高友村 | K46: 三江县乡村振兴局 | L46: 2022 | M46: 20220624 | N46: 20220815 | O46: 2022 | P46: 19.9481 | Q46: 19.9481 | AB46: 19.9481 | AD46: 是 | AE46: 大棚等配套设施 | AF46: 是 | AG46: 经营性资产
A47: 38 | B47: 三江县 | C47: 产业发展 | D47: 生产项目 | E47: 种植业基地 | F47: 三江侗族自治县_产业项目_乡村振兴重点村倾斜支持项目（三江县林溪镇高秀村食用菌（木耳）种植示范基地钢架大棚建设及配套设施建设项目） | G47: 5100001122112426 | H47: 钢架大棚面积300平方米 | I47: 林溪镇 | J47: 高秀村 | K47: 三江县乡村振兴局 | L47: 2022 | M47: 20220624 | N47: 20221015 | O47: 2022 | P47: 19.9481 | Q47: 19.9481 | AB47: 19.9481 | AD47: 是 | AE47: 大棚等配套设施 | AF47: 是 | AG47: 经营性资产
A48: 39 | B48: 三江县 | C48: 产业发展 | D48: 生产项目 | E48: 种植业基地 | F48: 三江侗族自治县_产业项目_乡村振兴重点村倾斜支持项目（三江县林溪镇弄团村木耳种植基地建设项目） | G48: 5100001122112426 | H48: 建筑面积240平方米，混凝土面积240平方米，双扇木质门7.5平方米 | I48: 林溪镇 | J48: 弄团村 | K48: 三江县乡村振兴局 | L48: 2022 | M48: 20220624 | N48: 20221108 | O48: 2022 | P48: 19.6405 | Q48: 19.6405 | AB48: 19.6405 | AD48: 是 | AE48: 种植基地 | AF48: 是 | AG48: 经营性资产
A49: 40 | B49: 三江县 | C49: 产业发展 | D49: 生产项目 | E49: 种植业基地 | F49: 三江侗族自治县_产业项目_乡村振兴重点村倾斜支持项目（洋溪乡高露村中寨屯油茶基地产业项目（龙塘至滚梅要道路硬化）） | G49: 5100001122112426 | H49: 产业路硬化0.34公里，路面宽3米。 | I49: 洋溪乡 | J49: 高露村 | K49: 三江县乡村振兴局 | L49: 2022 | M49: 20220623 | N49: 20220908 | O49: 2022 | P49: 16.5247 | Q49: 16.5247 | AB49: 16.5247 | AD49: 是 | AE49: 硬化路 | AF49: 是 | AG49: 公益性资产
A50: 41 | B50: 三江县 | C50: 产业发展 | D50: 生产项目 | E50: 种植业基地 | F50: 三江侗族自治县_产业项目_乡村振兴重点村倾斜支持项目（洋溪乡红岩村高贵屯油茶基地建设项目（高贵屯油茶基地路硬化）） | G50: 5100001122112426 | H50: 产业路硬化0.6公里，路面宽3米。 | I50: 洋溪乡 | J50: 红岩村 | K50: 三江县乡村振兴局 | L50: 2022 | M50: 20220630 | N50: 20221210 | O50: 2022 | P50: 20 | Q50: 20 | AB50: 20 | AD50: 是 | AE50: 产业路硬化 | AF50: 否 | AG50: 公益性资产 | AH50: 未完成结算
A51: 42 | B51: 三江县 | C51: 产业发展 | D51: 生产项目 | E51: 种植业基地 | F51: 三江侗族自治县_产业项目_乡村振兴重点村倾斜支持项目（洋溪乡波里村上寨屯油茶基地产业项目（321国道至英亚产业路硬化）） | G51: 5100001122112426 | H51: 产业路硬化0.6公里，路面宽3米。 | I51: 洋溪乡 | J51: 波里村 | K51: 三江县乡村振兴局 | L51: 2022 | M51: 20220613 | N51: 20220908 | O51: 2022 | P51: 18.0009 | Q51: 18.0009 | AB51: 18.0009 | AD51: 是 | AE51: 硬化路 | AF51: 是 | AG51: 公益性资产
A52: 43 | B52: 三江县 | C52: 产业发展 | D52: 生产项目 | E52: 种植业基地 | F52: 三江侗族自治县_产业项目_乡村振兴重点村倾斜支持项目（三江县独峒镇唐朝村唐朝屯产业基地修建水池及产业灌溉设施工程） | G52: 5100001122112426 | H52: PE160管840米，集水井1座，沉沙井7座，镇墩8座，63排水分水及球阀2个，32排水分水及球阀4个 | I52: 独峒镇 | J52: 唐朝村 | K52: 三江县乡村振兴局 | L52: 2022 | M52: 20220624 | N52: 20220916 | O52: 2022 | P52: 16.9448 | Q52: 16.9448 | AB52: 16.9448 | AD52: 是 | AE52: 灌溉设施 | AF52: 是 | AG52: 公益性资产
A53: 44 | B53: 三江县 | C53: 产业发展 | D53: 生产项目 | E53: 种植业基地 | F53: 三江侗族自治县_产业项目_乡村振兴重点村倾斜支持项目（三江县独峒镇高定村至金欧产业路延伸接干冲村产业项目） | G53: 5100001122112426 | H53: 高定村至金欧产业路延伸接干冲村产业0.243公里 | I53: 独峒镇 | J53: 高定村 | K53: 三江县乡村振兴局 | L53: 2022 | M53: 20220624 | N53: 20220916 | O53: 2022 | P53: 19.2116 | Q53: 19.2116 | AB53: 19.2116 | AD53: 是 | AE53: 产业路 | AF53: 是 | AG53: 公益性资产
A54: 45 | B54: 三江县 | C54: 产业发展 | D54: 生产项目 | E54: 种植业基地 | F54: 三江侗族自治县_产业项目_乡村振兴重点村倾斜支持项目（三江县独峒镇岜团村旅游发展生态场地平整工程） | G54: 5100001122112426 | H54: 厕所一座，场地硬化177.06㎡，下河台阶109.96㎡，铺设青石板49.3㎡等。 | I54: 独峒镇 | J54: 岜团村 | K54: 三江县乡村振兴局 | L54: 2022 | M54: 20220624 | N54: 20220916 | O54: 2022 | P54: 19.3633 | Q54: 19.3633 | AB54: 19.3633 | AD54: 是 | AE54: 场地平整 | AF54: 是 | AG54: 公益性资产
A55: 46 | B55: 三江县 | C55: 产业发展 | D55: 生产项目 | E55: 种植业基地 | F55: 三江侗族自治县_产业项目_三江标准茶园生产能力提升（三江县独峒镇高亚村上亚屯茶园步道工程） | G55: 5100001122166893 | H55: 建设硬化茶园步道7.345公里。 | I55: 独峒镇 | J55: 高亚村 | K55: 三江县农业农村局 | L55: 2022 | M55: 20220701 | N55: 20221107 | O55: 2022 | P55: 135.0766 | Q55: 135.0766 | AA55: 135.0766 | AD55: 是 | AE55: 生产道路 | AF55: 是 | AG55: 公益性资产
A56: 47 | B56: 三江县 | C56: 产业发展 | D56: 生产项目 | E56: 种植业基地 | F56: 三江侗族自治县_产业项目_三江标准茶园生产能力提升（三江县洋溪乡高露村高露屯茶园步道工程） | G56: 5100001122166893 | H56: 建设硬化茶园步道6.3172公里。 | I56: 洋溪乡 | J56: 高露村 | K56: 三江县农业农村局 | L56: 2022 | M56: 20220701 | N56: 20221107 | O56: 2022 | P56: =SUM(Q56:Y56) -> 136.7289 | Q56: 136.7289 | AA56: 136.7289 | AD56: 是 | AE56: 生产道路 | AF56: 是 | AG56: 公益性资产
A57: 48 | B57: 三江县 | C57: 产业发展 | D57: 生产项目 | E57: 种植业基地 | F57: 三江侗族自治县_产业项目_三江标准茶园生产能力提升（三江县同乐乡七团村四步屯茶园步道工程） | G57: 5100001122166893 | H57: 建设硬化茶园步道7.069公里。 | I57: 同乐苗族乡 | J57: 七团村 | K57: 三江县农业农村局 | L57: 2022 | M57: 20220701 | N57: 20221107 | O57: 2022 | P57: 153.4118 | Q57: 153.4118 | AA57: 153.4118 | AD57: 是 | AE57: 生产道路 | AF57: 是 | AG57: 公益性资产
A58: 49 | B58: 三江县 | C58: 产业发展 | D58: 生产项目 | E58: 种植业基地 | F58: 三江侗族自治县_产业项目_三江标准茶园生产能力提升（三江县良口和里村和里屯茶园步道工程） | G58: 5100001122166893 | H58: 建设硬化茶园步道8.49公里。 | I58: 良口乡 | J58: 和里村 | K58: 三江县农业农村局 | L58: 2022 | M58: 20220701 | N58: 20221107 | O58: 2022 | P58: 169.3861 | Q58: 169.3861 | AA58: 169.3861 | AD58: 是 | AE58: 生产道路 | AF58: 是 | AG58: 公益性资产
A59: 50 | B59: 三江县 | C59: 产业发展 | D59: 生产项目 | E59: 种植业基地 | F59: 三江侗族自治县_产业项目_三江标准茶园生产能力提升（三江县古宜镇光辉村马湾屯茶园步道工程） | G59: 5100001122166893 | H59: 建设硬化茶园步道4.552公里。 | I59: 古宜镇 | J59: 光辉村 | K59: 三江县农业农村局 | L59: 2022 | M59: 20220701 | N59: 20221107 | O59: 2022 | P59: 81.0034 | Q59: 81.0034 | AA59: 81.0034 | AD59: 是 | AE59: 生产道路 | AF59: 是 | AG59: 公益性资产
A60: 51 | B60: 三江县 | C60: 产业发展 | D60: 生产项目 | E60: 种植业基地 | F60: 三江侗族自治县_产业项目_茶园绿色防控（光辉村） | G60: 5100001122167049 | H60: 安装太阳能诱虫灯60盏 | I60: 古宜镇 | J60: 光辉村 | K60: 三江县农业农村局 | L60: 2022 | M60: 20220701 | N60: 20230112 | O60: 2022 | P60: 14.88 | Q60: 14.88 | AA60: 14.88 | AD60: 是 | AE60: 诱虫灯 | AF60: 是 | AG60: 公益性资产
A61: 52 | B61: 三江县 | C61: 产业发展 | D61: 生产项目 | E61: 种植业基地 | F61: 三江侗族自治县_产业项目_茶园绿色防控（文大村） | G61: 5100001122167049 | H61: 安装太阳能诱虫灯50盏 | I61: 古宜镇 | J61: 文大村 | K61: 三江县农业农村局 | L61: 2022 | M61: 20220701 | N61: 20230112 | O61: 2022 | P61: 12.4 | Q61: 12.4 | AA61: 12.4 | AD61: 是 | AE61: 诱虫灯 | AF61: 是 | AG61: 公益性资产
A62: 53 | B62: 三江县 | C62: 产业发展 | D62: 生产项目 | E62: 种植业基地 | F62: 三江侗族自治县_产业项目_茶园绿色防控（黄排村） | G62: 5100001122167049 | H62: 安装太阳能诱虫灯30盏 | I62: 古宜镇 | J62: 黄排村 | K62: 三江县农业农村局 | L62: 2022 | M62: 20220701 | N62: 20230112 | O62: 2022 | P62: =SUM(Q62:Y62) -> 7.44 | Q62: 7.44 | AA62: 7.44 | AD62: 是 | AE62: 诱虫灯 | AF62: 是 | AG62: 公益性资产
A63: 54 | B63: 三江县 | C63: 产业发展 | D63: 生产项目 | E63: 种植业基地 | F63: 三江侗族自治县_产业项目_茶园绿色防控（寨准村） | G63: 5100001122167049 | H63: 安装太阳能诱虫灯50盏 | I63: 古宜镇 | J63: 寨准村 | K63: 三江县农业农村局 | L63: 2022 | M63: 20220701 | N63: 20230112 | O63: 2022 | P63: 12.4 | Q63: 12.4 | AA63: 12.4 | AD63: 是 | AE63: 诱虫灯 | AF63: 是 | AG63: 公益性资产
A64: 55 | B64: 三江县 | C64: 产业发展 | D64: 生产项目 | E64: 种植业基地 | F64: 三江侗族自治县_产业项目_茶园绿色防控（独峒村） | G64: 5100001122167049 | H64: 安装太阳能诱虫灯53盏 | I64: 独峒镇 | J64: 独峒村 | K64: 三江县农业农村局 | L64: 2022 | M64: 20220701 | N64: 20230112 | O64: 2022 | P64: 13.144 | Q64: 13.144 | AA64: 13.144 | AD64: 是 | AE64: 诱虫灯 | AF64: 是 | AG64: 公益性资产
A65: 56 | B65: 三江县 | C65: 产业发展 | D65: 生产项目 | E65: 种植业基地 | F65: 三江侗族自治县_产业项目_茶园绿色防控（牙寨村） | G65: 5100001122167049 | H65: 安装太阳能诱虫灯16盏 | I65: 独峒镇 | J65: 牙寨村 | K65: 三江县农业农村局 | L65: 2022 | M65: 20220701 | N65: 20230112 | O65: 2022 | P65: 3.968 | Q65: 3.968 | AA65: 3.968 | AD65: 是 | AE65: 诱虫灯 | AF65: 是 | AG65: 公益性资产
A66: 57 | B66: 三江县 | C66: 产业发展 | D66: 生产项目 | E66: 种植业基地 | F66: 三江侗族自治县_产业项目_茶园绿色防控（高亚村） | G66: 5100001122167049 | H66: 安装太阳能诱虫灯30盏 | I66: 独峒镇 | J66: 高亚村 | K66: 三江县农业农村局 | L66: 2022 | M66: 20220701 | N66: 20230112 | O66: 2022 | P66: 7.44 | Q66: 7.44 | AA66: 7.44 | AD66: 是 | AE66: 诱虫灯 | AF66: 是 | AG66: 公益性资产
A67: 58 | B67: 三江县 | C67: 产业发展 | D67: 生产项目 | E67: 种植业基地 | F67: 三江侗族自治县_产业项目_茶园绿色防控（八协村） | G67: 5100001122167049 | H67: 安装太阳能诱虫灯91盏 | I67: 独峒镇 | J67: 八协村 | K67: 三江县农业农村局 | L67: 2022 | M67: 20220701 | N67: 20230112 | O67: 2022 | P67: 22.568 | Q67: 22.568 | AA67: 22.568 | AD67: 是 | AE67: 诱虫灯 | AF67: 是 | AG67: 公益性资产
A68: 59 | B68: 三江县 | C68: 产业发展 | D68: 生产项目 | E68: 种植业基地 | F68: 三江侗族自治县_产业项目_茶园绿色防控（程阳村） | G68: 5100001122167049 | H68: 安装太阳能诱虫灯40盏 | I68: 林溪镇 | J68: 程阳村 | K68: 三江县农业农村局 | L68: 2022 | M68: 20220701 | N68: 20230112 | O68: 2022 | P68: 9.92 | Q68: 9.92 | AA68: 9.92 | AD68: 是 | AE68: 诱虫灯 | AF68: 是 | AG68: 公益性资产
A69: 60 | B69: 三江县 | C69: 产业发展 | D69: 生产项目 | E69: 种植业基地 | F69: 三江侗族自治县_产业项目_茶园绿色防控（平铺村） | G69: 5100001122167049 | H69: 安装太阳能诱虫灯40盏 | I69: 林溪镇 | J69: 平铺村 | K69: 三江县农业农村局 | L69: 2022 | M69: 20220701 | N69: 20230112 | O69: 2022 | P69: 9.92 | Q69: 9.92 | AA69: 9.92 | AD69: 是 | AE69: 诱虫灯 | AF69: 是 | AG69: 公益性资产
A70: 61 | B70: 三江县 | C70: 产业发展 | D70: 生产项目 | E70: 种植业基地 | F70: 三江侗族自治县_产业项目_茶园绿色防控（冠洞村） | G70: 5100001122167049 | H70: 安装太阳能诱虫灯40盏 | I70: 林溪镇 | J70: 冠洞村 | K70: 三江县农业农村局 | L70: 2022 | M70: 20220701 | N70: 20230112 | O70: 2022 | P70: 9.92 | Q70: 9.92 | AA70: 9.92 | AD70: 是 | AE70: 诱虫灯 | AF70: 是 | AG70: 公益性资产
A71: 62 | B71: 三江县 | C71: 产业发展 | D71: 生产项目 | E71: 种植业基地 | F71: 三江侗族自治县_产业项目_茶园绿色防控（高友村） | G71: 5100001122167049 | H71: 安装太阳能诱虫灯40盏 | I71: 林溪镇 | J71: 高友村 | K71: 三江县农业农村局 | L71: 2022 | M71: 20220701 | N71: 20230112 | O71: 2022 | P71: 9.92 | Q71: 9.92 | AA71: 9.92 | AD71: 是 | AE71: 诱虫灯 | AF71: 是 | AG71: 公益性资产
A72: 63 | B72: 三江县 | C72: 产业发展 | D72: 生产项目 | E72: 种植业基地 | F72: 三江侗族自治县_产业项目_茶园绿色防控（七团村） | G72: 5100001122167049 | H72: 安装太阳能诱虫灯31盏 | I72: 同乐苗族乡 | J72: 七团村 | K72: 三江县农业农村局 | L72: 2022 | M72: 20220701 | N72: 20230112 | O72: 2022 | P72: 7.688 | Q72: 7.688 | AA72: 7.688 | AD72: 是 | AE72: 诱虫灯 | AF72: 是 | AG72: 公益性资产
A73: 64 | B73: 三江县 | C73: 产业发展 | D73: 生产项目 | E73: 种植业基地 | F73: 三江侗族自治县_产业项目_茶园绿色防控（孟寨村） | G73: 5100001122167049 | H73: 安装太阳能诱虫灯39盏 | I73: 同乐苗族乡 | J73: 孟寨村 | K73: 三江县农业农村局 | L73: 2022 | M73: 20220701 | N73: 20230112 | O73: 2022 | P73: 9.672 | Q73: 9.672 | AA73: 9.672 | AD73: 是 | AE73: 诱虫灯 | AF73: 是 | AG73: 公益性资产
A74: 65 | B74: 三江县 | C74: 产业发展 | D74: 生产项目 | E74: 种植业基地 | F74: 三江侗族自治县_产业项目_茶园绿色防控（高培村） | G74: 5100001122167049 | H74: 安装太阳能诱虫灯45盏 | I74: 同乐苗族乡 | J74: 高培村 | K74: 三江县农业农村局 | L74: 2022 | M74: 20220701 | N74: 20230112 | O74: 2022 | P74: 11.16 | Q74: 11.16 | AA74: 11.16 | AD74: 是 | AE74: 诱虫灯 | AF74: 是 | AG74: 公益性资产
A75: 66 | B75: 三江县 | C75: 产业发展 | D75: 生产项目 | E75: 种植业基地 | F75: 三江侗族自治县_产业项目_茶园绿色防控（桂书村） | G75: 5100001122167049 | H75: 安装太阳能诱虫灯30盏 | I75: 同乐苗族乡 | J75: 桂书村 | K75: 三江县农业农村局 | L75: 2022 | M75: 20220701 | N75: 20230112 | O75: 2022 | P75: 7.44 | Q75: 7.44 | AA75: 7.44 | AD75: 是 | AE75: 诱虫灯 | AF75: 是 | AG75: 公益性资产
A76: 67 | B76: 三江县 | C76: 产业发展 | D76: 生产项目 | E76: 种植业基地 | F76: 三江侗族自治县_产业项目_茶园绿色防控（高武村） | G76: 5100001122167049 | H76: 安装太阳能诱虫灯45盏 | I76: 同乐苗族乡 | J76: 高武村 | K76: 三江县农业农村局 | L76: 2022 | M76: 20220701 | N76: 20230112 | O76: 2022 | P76: 11.16 | Q76: 11.16 | AA76: 11.16 | AD76: 是 | AE76: 诱虫灯 | AF76: 是 | AG76: 公益性资产
A77: 68 | B77: 三江县 | C77: 产业发展 | D77: 生产项目 | E77: 种植业基地 | F77: 三江侗族自治县_产业项目_茶园绿色防控（和里村） | G77: 5100001122167049 | H77: 安装太阳能诱虫灯40盏 | I77: 良口乡 | J77: 和里村 | K77: 三江县农业农村局 | L77: 2022 | M77: 20220701 | N77: 20230112 | O77: 2022 | P77: 9.92 | Q77: 9.92 | AA77: 9.92 | AD77: 是 | AE77: 诱虫灯 | AF77: 是 | AG77: 公益性资产
A78: 69 | B78: 三江县 | C78: 产业发展 | D78: 生产项目 | E78: 种植业基地 | F78: 三江侗族自治县_产业项目_茶园绿色防控（孟龙村） | G78: 5100001122167049 | H78: 安装太阳能诱虫灯40盏 | I78: 良口乡 | J78: 孟龙村 | K78: 三江县农业农村局 | L78: 2022 | M78: 20220701 | N78: 20230112 | O78: 2022 | P78: 9.92 | Q78: 9.92 | AA78: 9.92 | AD78: 是 | AE78: 诱虫灯 | AF78: 是 | AG78: 公益性资产
A79: 70 | B79: 三江县 | C79: 产业发展 | D79: 生产项目 | E79: 种植业基地 | F79: 三江侗族自治县_产业项目_茶园绿色防控（燕茶村） | G79: 5100001122167049 | H79: 安装太阳能诱虫灯50盏 | I79: 良口乡 | J79: 燕茶村 | K79: 三江县农业农村局 | L79: 2022 | M79: 20220701 | N79: 20230112 | O79: 2022 | P79: 12.4 | Q79: 12.4 | AA79: 12.4 | AD79: 是 | AE79: 诱虫灯 | AF79: 是 | AG79: 公益性资产
A80: 71 | B80: 三江县 | C80: 产业发展 | D80: 生产项目 | E80: 种植业基地 | F80: 三江侗族自治县_产业项目_茶园绿色防控（布糯村） | G80: 5100001122167049 | H80: 安装太阳能诱虫灯50盏 | I80: 良口乡 | J80: 布糯村 | K80: 三江县农业农村局 | L80: 2022 | M80: 20220701 | N80: 20230112 | O80: 2022 | P80: 12.4 | Q80: 12.4 | AA80: 12.4 | AD80: 是 | AE80: 诱虫灯 | AF80: 是 | AG80: 公益性资产
A81: 72 | B81: 三江县 | C81: 产业发展 | D81: 生产项目 | E81: 种植业基地 | F81: 三江侗族自治县_产业项目_茶园绿色防控（高露村） | G81: 5100001122167049 | H81: 安装太阳能诱虫灯60盏 | I81: 洋溪乡 | J81: 高露村 | K81: 三江县农业农村局 | L81: 2022 | M81: 20220701 | N81: 20230112 | O81: 2022 | P81: 14.88 | Q81: 14.88 | AA81: 14.88 | AD81: 是 | AE81: 诱虫灯 | AF81: 是 | AG81: 公益性资产
A82: 73 | B82: 三江县 | C82: 产业发展 | D82: 生产项目 | E82: 种植业基地 | F82: 三江侗族自治县_产业项目_茶园绿色防控（良培村） | G82: 5100001122167049 | H82: 安装太阳能诱虫灯45盏 | I82: 洋溪乡 | J82: 良培村 | K82: 三江县农业农村局 | L82: 2022 | M82: 20220701 | N82: 20230112 | O82: 2022 | P82: 11.16 | Q82: 11.16 | AA82: 11.16 | AD82: 是 | AE82: 诱虫灯 | AF82: 是 | AG82: 公益性资产
A83: 74 | B83: 三江县 | C83: 产业发展 | D83: 生产项目 | E83: 种植业基地 | F83: 三江侗族自治县_产业项目_茶园绿色防控（红岩村） | G83: 5100001122167049 | H83: 安装太阳能诱虫灯45盏 | I83: 洋溪乡 | J83: 红岩村 | K83: 三江县农业农村局 | L83: 2022 | M83: 20220701 | N83: 20230112 | O83: 2022 | P83: 11.16 | Q83: 11.16 | AA83: 11.16 | AD83: 是 | AE83: 诱虫灯 | AF83: 是 | AG83: 公益性资产
A84: 75 | B84: 三江县 | C84: 产业发展 | D84: 生产项目 | E84: 种植业基地 | F84: 三江侗族自治县_产业项目_茶园绿色防控（波里村） | G84: 5100001122167049 | H84: 安装太阳能诱虫灯20盏 | I84: 洋溪乡 | J84: 波里村 | K84: 三江县农业农村局 | L84: 2022 | M84: 20220701 | N84: 20230112 | O84: 2022 | P84: 4.96 | Q84: 4.96 | AA84: 4.96 | AD84: 是 | AE84: 诱虫灯 | AF84: 是 | AG84: 公益性资产
A85: 76 | B85: 三江县 | C85: 产业发展 | D85: 生产项目 | E85: 种植业基地 | F85: 三江侗族自治县_产业项目_八江镇石南山片区求良油茶示范基地建设项目（寨卯至求良道路硬化） | G85: 5100001122217132 | H85: 八江镇石南山片区求良油茶示范基地建设项目（寨卯至求良道路硬化），硬化水泥路5公里，路基宽5.5米，路面宽4.5米。 | I85: 八江镇 | J85: 三团村 | K85: 三江县林业局 | L85: 2022 | M85: 20220624 | N85: 20221007 | O85: 2022 | P85: 317.7345 | Q85: 317.7345 | AA85: 220.7 | AB85: 97.0345 | AD85: 是 | AE85: 硬化路 | AF85: 否 | AG85: 公益性资产 | AH85: 未完成结算
A86: 77 | B86: 三江县 | C86: 产业发展 | D86: 生产项目 | E86: 种植业基地 | F86: 三江侗族自治县_产业项目_八江镇石南山油茶示范基地建设项目（石南山至平铺耍道路硬化） | G86: 5100001122217285 | H86: 八江镇石南山油茶示范基地建设项目（石南山至平铺耍道路硬化），硬化水泥路5公里，路基宽5.5米，路面宽4.5米。 | I86: 八江镇 | J86: 岩脚村 | K86: 三江县林业局 | L86: 2022 | M86: 20220624 | N86: 20221007 | O86: 2022 | P86: 320.3371 | Q86: 320.3371 | AA86: 222.7 | AB86: 97.6371 | AD86: 是 | AE86: 硬化路 | AF86: 否 | AG86: 公益性资产 | AH86: 未完成结算
A87: 78 | B87: 三江县 | C87: 产业发展 | D87: 生产项目 | E87: 种植业基地 | F87: 三江侗族自治县_产业项目_三江县八江镇八江村平江屯五组盘线扒油茶基地建设项目（灌溉项目） | G87: 5100001122217406 | H87: 三江县八江镇八江村平江屯五组盘线扒油茶基地建设项目（灌溉项目），新建水池400立方，铺设水管15公里。 | I87: 八江镇 | J87: 八江村 | K87: 三江县林业局 | L87: 2022 | M87: 20220624 | N87: 20221013 | O87: 2022 | P87: 170.7652 | Q87: 170.7652 | AA87: 110.6811 | AB87: 60.0841 | AD87: 是 | AE87: 灌溉设施 | AF87: 否 | AG87: 公益性资产 | AH87: 未完成结算
A88: 79 | B88: 三江县 | C88: 产业发展 | D88: 生产项目 | E88: 种植业基地 | F88: 三江侗族自治县_产业项目_八江镇六海油茶示范基地建设项目（金竹六海油茶基地道路硬化） | G88: 5100001122217492 | H88: 八江镇六海油茶示范基地建设项目（金竹六海油茶基地道路硬化），道路硬化4公里。 | I88: 八江镇 | J88: 八江村 | K88: 三江县林业局 | L88: 2022 | M88: 20220624 | N88: 20221014 | O88: 2022 | P88: 317.4501 | Q88: 317.4501 | AA88: 221.3 | AB88: 96.1501 | AD88: 是 | AE88: 硬化路 | AF88: 否 | AG88: 公益性资产 | AH88: 未完成结算
A89: 80 | B89: 三江县 | C89: 产业发展 | D89: 生产项目 | E89: 种植业基地 | F89: 三江侗族自治县_产业项目_丹洲镇达兀山油茶示范基地建设项目（达兀山油茶示范基地道路硬化） | G89: 5100001122217590 | H89: 丹洲镇达兀山油茶示范基地建设项目（达兀山油茶示范基地道路硬化），硬化水泥路3公里，路基宽4.5米，路面宽3.5米。 | I89: 丹洲镇 | J89: 合桐村 | K89: 三江县林业局 | L89: 2022 | M89: 20220624 | N89: 20221011 | O89: 2022 | P89: 190.2472 | Q89: 190.2472 | AA89: 128.9 | AB89: 61.3472 | AD89: 是 | AE89: 硬化路 | AF89: 否 | AG89: 公益性资产 | AH89: 未完成结算
A90: 81 | B90: 三江县 | C90: 产业发展 | D90: 生产项目 | E90: 种植业基地 | F90: 三江侗族自治县_产业项目_独峒镇八协村守昌屯平满油茶基地产业路硬化项目 | G90: 5100001122217721 | H90: 独峒镇八协村守昌屯平满油茶基地产业路硬化项目，硬化水泥路6公里，路基宽5.5米，路面宽4.5米。 | I90: 独峒镇 | J90: 八协村 | K90: 三江县林业局 | L90: 2022 | M90: 20220624 | N90: 20221008 | O90: 2022 | P90: 325.4371 | Q90: 325.4371 | AA90: 228.8 | AB90: 96.6371 | AD90: 是 | AE90: 产业路 | AF90: 否 | AG90: 公益性资产 | AH90: 未完成结算
A91: 82 | B91: 三江县 | C91: 产业发展 | D91: 生产项目 | E91: 种植业基地 | F91: 三江侗族自治县_产业项目_良口乡晒江村油茶示范基地建设项目（晒江村高归达油茶示范基地道路硬化） | G91: 5100001122217840 | H91: 良口乡晒江村油茶示范基地建设项目（晒江村高归达油茶示范基地道路硬化），硬化水泥路3公里，路基宽5.5米，路面宽4.5米。 | I91: 良口乡 | J91: 晒江村 | K91: 三江县林业局 | L91: 2022 | M91: 20220624 | N91: 20221008 | O91: 2022 | P91: 221.4505 | Q91: 221.4505 | AA91: 164.858 | AB91: 56.5925 | AD91: 是 | AE91: 硬化路 | AF91: 否 | AG91: 公益性资产 | AH91: 未完成结算
A92: 83 | B92: 三江县 | C92: 产业发展 | D92: 生产项目 | E92: 种植业基地 | F92: 三江侗族自治县_产业项目_梅林乡新民村油茶示范基地建设项目（新民上寨油茶基地道路硬化） | G92: 5100001122218168 | H92: 梅林乡新民村油茶示范基地建设项目（新民上寨油茶基地道路硬化），硬化水泥路4.233公里，路基宽5.5米，路面宽4.5米。 | I92: 梅林乡 | J92: 新民村 | K92: 三江县林业局 | L92: 2022 | M92: 20220624 | N92: 20221128 | O92: 2022 | P92: 252.4507 | Q92: 252.4507 | AA92: 189.9885 | AB92: 62.4622 | AD92: 是 | AE92: 硬化路 | AF92: 否 | AG92: 公益性资产 | AH92: 未完成结算
A93: 84 | B93: 三江县 | C93: 产业发展 | D93: 生产项目 | E93: 种植业基地 | F93: 三江侗族自治县_产业项目_三江县同乐乡孟寨油茶示范基地建设项目（灌溉项目） | G93: 5100001122218430 | H93: 三江县同乐乡孟寨油茶示范基地建设项目（灌溉项目），新建灌溉水池400m3，敷设给水线路7km。 | I93: 同乐苗族乡 | J93: 孟寨村 | K93: 三江县林业局 | L93: 2022 | M93: 20220624 | N93: 20221008 | O93: 2022 | P93: 147.6717 | Q93: 147.6717 | AA93: 88.758 | AB93: 58.9137 | AD93: 是 | AE93: 灌溉设施 | AF93: 是 | AG93: 公益性资产
A94: 85 | B94: 三江县 | C94: 产业发展 | D94: 生产项目 | E94: 种植业基地 | F94: 三江侗族自治县_产业项目_洋溪乡红岩村乌述屯油茶基地建设项目（乌述油茶基地道路硬化） | G94: 5100001122219004 | H94: 洋溪乡红岩村乌述屯油茶基地建设项目（乌述油茶基地道路硬化），油茶基地道路硬化4.165公里。 | I94: 洋溪乡 | J94: 红岩村 | K94: 三江县林业局 | L94: 2022 | M94: 20220624 | N94: 20221014 | O94: 2022 | P94: 311.1073 | Q94: 311.1073 | AA94: 214.2698 | AB94: 96.8375 | AD94: 是 | AE94: 硬化路 | AF94: 否 | AG94: 公益性资产 | AH94: 未完成结算
A95: 86 | B95: 三江县 | C95: 产业发展 | D95: 生产项目 | E95: 种植业基地 | F95: 三江侗族自治县_产业项目_林溪镇林溪村科马界油茶示范基地建设项目（灌溉项目） | G95: 5100001122219062 | H95: 林溪镇林溪村科马界油茶示范基地建设项目（灌溉项目）。科马界650亩油茶示范基地建设灌溉水池400m3，敷设给水线路5km等 | I95: 林溪镇 | J95: 林溪村 | K95: 三江县林业局 | L95: 2022 | M95: 20220624 | N95: 20221003 | O95: 2022 | P95: 115.7686 | Q95: 115.7686 | AA95: 75.414 | AB95: 40.3546 | AD95: 是 | AE95: 灌溉设施 | AF95: 是 | AG95: 公益性资产
A96: 87 | B96: 三江县 | C96: 产业发展 | D96: 生产项目 | E96: 种植业基地 | F96: 三江侗族自治县_产业项目_和平乡白腊坪油茶示范基地建设项目 （大地至白腊坪油茶示范基地道路硬化） | G96: 5100001122219364 | H96: 和平乡白腊坪油茶示范基地建设项目 （大地至白腊坪油茶示范基地道路硬化），道路硬化4公里。 | I96: 和平乡 | J96: 六溪村 | K96: 三江县林业局 | L96: 2022 | M96: 20220624 | N96: 20221201 | O96: 2022 | P96: 220.7192 | Q96: 220.7192 | AA96: 165.5 | AB96: 55.2192 | AD96: 是 | AE96: 硬化路 | AF96: 否 | AG96: 公益性资产 | AH96: 未完成结算
A97: 88 | B97: 三江县 | C97: 产业发展 | D97: 生产项目 | E97: 种植业基地 | F97: 三江侗族自治县_产业项目_洋溪乡红岩村塘扣屯油茶基地建设项目（塘扣油茶基地道路硬化） | G97: 5100001122219378 | H97: 洋溪乡红岩村塘扣屯油茶基地建设项目（塘扣油茶基地道路硬化），油茶基地道路硬化4.075公里。 | I97: 洋溪乡 | J97: 红岩村 | K97: 三江县林业局 | L97: 2022 | M97: 20220624 | N97: 20221014 | O97: 2022 | P97: 309.7892 | Q97: 309.7892 | AA97: 213.3791 | AB97: 96.4101 | AD97: 是 | AE97: 硬化路 | AF97: 否 | AG97: 公益性资产 | AH97: 未完成结算
A98: 89 | B98: 三江县 | C98: 产业发展 | D98: 生产项目 | E98: 种植业基地 | F98: 三江侗族自治县_产业项目_高基乡篦梳村篦梳屯杉竹基地建设项目（寨门产业路项目） | G98: 5100001122219585 | H98: 新建砂石路6公里，宽4.5米 | I98: 高基瑶族乡 | J98: 篦梳村 | K98: 三江县林业局 | L98: 2022 | M98: 20220624 | N98: 20221214 | O98: 2022 | P98: 292.7891 | Q98: 292.7891 | AA98: 200.5 | AB98: 92.2891 | AD98: 是 | AE98: 产业路 | AF98: 否 | AG98: 公益性资产 | AH98: 未完成结算
A99: 90 | B99: 三江县 | C99: 产业发展 | D99: 生产项目 | E99: 种植业基地 | F99: 三江侗族自治县_产业项目_高基乡拉旦村麻元屯油茶基地新建轨道车项目 | G99: 5100001122219800 | H99: 新建轨道车3700米 | I99: 高基瑶族乡 | J99: 拉旦村 | K99: 三江县林业局 | L99: 2022 | M99: 20220624 | N99: 20220804 | O99: 2022 | P99: 99.9715 | Q99: 99.9715 | AA99: 88.7162 | AB99: 11.2553 | AD99: 是 | AE99: 轨道车 | AF99: 否 | AG99: 公益性资产 | AH99: 未完成结算
A100: 91 | B100: 三江县 | C100: 产业发展 | D100: 生产项目 | E100: 种植业基地 | F100: 三江侗族自治县_产业项目_斗江镇思欧村田埂山油茶示范基地建设项目（灌溉项目） | G100: 5100001122219965 | H100: 新建灌溉水池 400m3、灌溉给水管线 5 公里 | I100: 斗江镇 | J100: 思欧村 | K100: 三江县林业局 | L100: 2022 | M100: 20220624 | N100: 20221011 | O100: 2022 | P100: 167.3931 | Q100: 167.3931 | AA100: 111.042 | AB100: 56.3511 | AD100: 是 | AE100: 灌溉设施 | AF100: 否 | AG100: 公益性资产 | AH100: 未完成结算
A101: 92 | B101: 三江县 | C101: 产业发展 | D101: 生产项目 | E101: 种植业基地 | F101: 三江侗族自治县_产业项目_程村乡泗里村白溪脑竹木产业路扩宽、硬化工程 | G101: 5100001122428623 | H101: 产业路扩宽硬化1.135公里，挡土墙24.2米161.54立方米 | I101: 程村乡 | J101: 泗里村 | K101: 三江县乡村振兴局 | L101: 2022 | M101: 20220701 | N101: 20221009 | O101: 2022 | P101: 93.0806 | Q101: 93.0806 | AA101: 93.0806 | AD101: 是 | AE101: 产业路 | AF101: 是 | AG101: 公益性资产
A102: 93 | B102: 三江县 | C102: 产业发展 | D102: 生产项目 | E102: 种植业基地 | F102: 三江侗族自治县_产业项目_三江县牛浪坡林场油茶采穗圃项目提升工程 | G102: 5100001135927912 | H102: 水肥一体灌溉设施建设70亩，道路开挖及铺石渣750米 | I102: 丹洲镇 | J102: 牛浪坡林场 | K102: 三江县牛浪坡林场 | L102: 2022 | M102: 20221020 | N102: 20221031 | O102: 2022 | P102: 20 | Q102: 20 | Z102: 20 | AD102: 否 | AE102: 生物类资产 | AF102: 否 | AG102: 不登记资产
A103: 94 | B103: 三江县 | C103: 产业发展 | D103: 生产项目 | E103: 种植业基地 | F103: 三江侗族自治县_产业项目_2022年三江县乡村振兴示范带建设项目（八江镇布央村布央屯茶叶基地新建产业路项目） | G103: 5100001135945108 | H103: 新建茶叶产业路1公里，路基宽5.5米，路面宽4.5米。 | I103: 八江镇 | J103: 布央村 | K103: 三江县乡村振兴局 | L103: 2022 | M103: 20220704 | N103: 20221102 | O103: 2022 | P103: =SUM(Q103:Y103) -> 53.2963 | Q103: 53.2963 | AB103: 53.2963 | AD103: 是 | AE103: 产业路 | AF103: 是 | AG103: 公益性资产
A104: 95 | B104: 三江县 | C104: 产业发展 | D104: 生产项目 | E104: 种植业基地 | F104: 三江侗族自治县_产业项目_2022年三江县乡村振兴示范带建设项目（林溪镇平铺村平铺屯油茶、杉木产业路维修及提升工程） | G104: 5100001135945108 | H104: 提升油茶产业路3.5公里，路基宽5.5米，路面宽4.5米。 | I104: 林溪镇 | J104: 平铺村 | K104: 三江县乡村振兴局 | L104: 2022 | M104: 20220401 | N104: 20221109 | O104: 2022 | P104: 270 | Q104: 270 | AB104: 270 | AD104: 是 | AE104: 产业路 | AF104: 否 | AG104: 公益性资产 | AH104: 未完成结算
A105: 96 | B105: 三江县 | C105: 产业发展 | D105: 生产项目 | E105: 种植业基地 | F105: 三江侗族自治县_产业项目_2022年三江县乡村振兴示范带建设项目（林溪镇平铺村平铺屯农田灌溉建设项目） | G105: 5100001135945108 | H105: 新建110PE管1182米，新建水渠631米，水渠沟槽埋管159米 | I105: 林溪镇 | J105: 平铺村 | K105: 三江县乡村振兴局 | L105: 2022 | M105: 20220624 | N105: 20221019 | O105: 2022 | P105: 92.9126 | Q105: 92.9126 | AB105: 92.9126 | AD105: 是 | AE105: 灌溉设施 | AF105: 是 | AG105: 公益性资产
A106: 97 | B106: 三江县 | C106: 产业发展 | D106: 生产项目 | E106: 种植业基地 | F106: 三江侗族自治县_产业项目_2022年三江县乡村振兴示范带建设项目（林溪镇冠洞村冠小屯微田园示范区项目） | G106: 5100001135945108 | H106: 建设4000平方米微田园示范区 | I106: 林溪镇 | J106: 冠侗村 | K106: 三江县乡村振兴局 | L106: 2022 | M106: 20220401 | N106: 20221109 | O106: 2022 | P106: 200 | Q106: 200 | AB106: 200 | AD106: 是 | AE106: 微田园 | AF106: 否 | AG106: 经营性资产 | AH106: 未完成结算
A107: 98 | B107: 三江县 | C107: 产业发展 | D107: 生产项目 | E107: 种植业基地 | F107: 三江侗族自治县_产业项目_2022年三江县乡村振兴示范带建设项目（林溪镇高秀村高秀屯油茶、杉木产业路维修及提升工程） | G107: 5100001135945108 | H107: 提升油茶产业路2.249公里，路基宽5.5米，路面宽4.5米。 | I107: 林溪镇 | J107: 高秀村 | K107: 三江县乡村振兴局 | L107: 2022 | M107: 20220624 | N107: 20221019 | O107: 2022 | P107: 181.9198 | Q107: 181.9198 | AB107: 181.9198 | AD107: 是 | AE107: 产业路 | AF107: 是 | AG107: 公益性资产
A108: 99 | B108: 三江县 | C108: 产业发展 | D108: 生产项目 | E108: 种植业基地 | F108: 三江侗族自治县_产业项目_2022年三江县乡村振兴示范带建设项目（独峒镇唐朝村唐朝屯产业路项目） | G108: 5100001135945108 | H108: 提升油茶产业路5公里，路基宽5.5米，路面宽4.5米。 | I108: 独峒镇 | J108: 唐朝村 | K108: 三江县乡村振兴局 | L108: 2022 | M108: 20220401 | N108: 20221109 | O108: 2022 | P108: 250 | Q108: 250 | AB108: 250 | AD108: 是 | AE108: 产业路 | AF108: 否 | AG108: 公益性资产 | AH108: 未完成结算
A109: 100 | B109: 三江县 | C109: 产业发展 | D109: 生产项目 | E109: 种植业基地 | F109: 三江侗族自治县_产业项目_三江县古宜镇文大村文村茶叶基地产业路水毁修复项目（寨尾九鼻至芜包） | G109: 5100001135961509 | H109: 三江县古宜镇文大村文村茶叶基地产业路水毁修复项目（寨尾九鼻至芜包）盖板涵一座，挡土墙168.2m³ | I109: 古宜镇 | J109: 文大村 | K109: 三江县乡村振兴局 | L109: 2022 | M109: 20220323 | N109: 20220809 | O109: 2022 | P109: =SUM(Q109:Y109) -> 18.3437 | Q109: 18.3437 | AA109: 1.9 | AB109: 16.4437 | AD109: 是 | AE109: 盖板涵、挡土墙 | AF109: 是 | AG109: 公益性资产
A110: 101 | B110: 三江县 | C110: 产业发展 | D110: 生产项目 | E110: 种植业基地 | F110: 三江侗族自治县_产业项目_三江县同乐乡集体林场生态有机茶园基地产业路建设项目 | G110: 5100001136253554 | H110: 建设茶园产业路，方便群众发展产业，路面宽4.5米，长9.7公里。包含涵管、水沟。 | I110: 同乐苗族乡 | K110: 三江县乡村振兴局 | L110: 2022 | M110: 20220820 | N110: 20220928 | O110: 2022 | P110: 226.3697 | Q110: 226.3697 | Z110: 226.3697 | AD110: 是 | AE110: 产业路 | AF110: 是 | AG110: 公益性资产
A111: 102 | B111: 三江县 | C111: 产业发展 | D111: 生产项目 | E111: 种植业基地 | F111: 三江侗族自治县_产业项目_2022年油茶双千计划（油茶新造林项目） | G111: 5100001136267044 | H111: 全县范围内实施油茶“双千”计划种植2.2万亩 | I111: 三江侗族自治县 | K111: 三江县林业局 | L111: 2022 | M111: 20220801 | N111: 20221214 | O111: 2022 | P111: 1482 | R111: 1482 | Z111: 1482 | AD111: 否 | AE111: 无 | AF111: 否 | AG111: 到户类资产
A112: 103 | B112: 三江县 | C112: 产业发展 | D112: 生产项目 | E112: 种植业基地 | F112: 三江侗族自治县_产业项目_2022年油茶双千计划（油茶低产林抚育改造项目） | G112: 5100001136270029 | H112: 全县范围内实施油茶低产林抚育改造1万亩 | I112: 三江侗族自治县 | K112: 三江县林业局 | L112: 2022 | M112: 20220801 | N112: 20221214 | O112: 2022 | P112: 300 | R112: 300 | Z112: 300 | AD112: 否 | AE112: 无 | AF112: 否 | AG112: 不登记资产
A113: 104 | B113: 三江县 | C113: 产业发展 | D113: 生产项目 | E113: 种植业基地 | F113: 三江侗族自治县_产业项目_良口乡产口村寨沙屯油茶低改示范基地产业路（产口村寨沙产业路 ） | G113: 5100001172771385 | H113: 200亩油茶低改示范基地新建砂石路6.6公里 | I113: 良口乡 | J113: 产口村 | K113: 三江县林业局 | L113: 2022 | M113: 20221014 | N113: 20221201 | O113: 2022 | P113: 160.6632 | Q113: 160.6632 | Z113: 118.3661 | AB113: 42.2971 | AD113: 是 | AE113: 产业路 | AF113: 否 | AG113: 公益性资产 | AH113: 未完成结算
A114: 105 | B114: 三江县 | C114: 产业发展 | D114: 生产项目 | E114: 种植业基地 | F114: 三江侗族自治县_产业项目_三江县高基乡桐叶村毛竹、杉木基地林区产业路二期 | G114: 5100001172876579 | H114: 桐叶村杉竹基地建设长2公里砂石路 | I114: 高基瑶族乡 | J114: 桐叶村 | K114: 三江县林业局 | L114: 2022 | M114: 20221014 | N114: 20221130 | O114: 2022 | P114: 95.9869 | Q114: 95.9869 | Z114: 15.89 | AA114: 42.9113 | AB114: 37.1856 | AD114: 是 | AE114: 产业路 | AF114: 否 | AG114: 公益性资产 | AH114: 未完成结算
A115: 106 | B115: 三江县 | C115: 产业发展 | D115: 生产项目 | E115: 种植业基地 | F115: 三江侗族自治县_产业项目_丹洲镇板江社区社冲到滩头冲杉竹、油茶基地产业路 | G115: 5100001172896177 | H115: 因铁路电气化全程封路倒致原有的产业中断无法通行，需要另开设道路通行，3公里 | I115: 丹洲镇 | J115: 板江社区 | K115: 三江县林业局 | L115: 2022 | M115: 20221014 | N115: 20221130 | O115: 2022 | P115: 117.9428 | Q115: 117.9428 | Z115: 65.6939 | AB115: 52.2489 | AD115: 是 | AE115: 产业路 | AF115: 是 | AG115: 公益性资产
A116: 107 | B116: 三江县 | C116: 产业发展 | D116: 生产项目 | E116: 种植业基地 | F116: 三江侗族自治县_产业项目_良口乡布糯村布勾旧寨屯油茶杉竹基地产业路（布勾至佳林） | G116: 5100001172907874 | H116: 新建林区道路2.691公里，宽4.5米 | I116: 良口乡 | J116: 布糯村 | K116: 三江县林业局 | L116: 2022 | M116: 20221014 | N116: 20221129 | O116: 2022 | P116: 194.7323 | Q116: 194.7323 | Z116: 6.6352 | AB116: 188.0971 | AD116: 是 | AE116: 产业路 | AF116: 否 | AG116: 公益性资产 | AH116: 未完成结算
A117: 108 | B117: 三江县 | C117: 产业发展 | D117: 生产项目 | E117: 种植业基地 | F117: 三江侗族自治县_产业项目_三江县良口乡寨塘村杉木基地产业路硬化工程（良伞至良扛） | G117: 5100001173448010 | H117: 硬化道路长度2.2公里，建设内容包含路面硬化、挡土墙建设、涵管、排水沟等项目 | I117: 良口乡 | J117: 寨塘村 | K117: 良口乡人民政府 | L117: 2022 | M117: 20220926 | N117: 20221212 | O117: 2022 | P117: 147.0286 | Q117: 147.0286 | AB117: 147.0286 | AD117: 是 | AE117: 产业路 | AF117: 是 | AG117: 公益性资产
A118: 109 | B118: 三江县 | C118: 产业发展 | D118: 生产项目 | E118: 养殖业基地 | F118: 三江侗族自治县_产业项目_三江县乡村振兴产业提升项目（老堡乡边浪村白云山蜜蜂养殖基地）（粤桂协作项目） | G118: 5100001099509882 | H118: 建设老堡乡边浪村白云山建设蜜蜂养殖基地，每套养殖工具600元，包括蜂箱和蜂种。 | I118: 老堡乡 | J118: 边浪村 | K118: 三江县乡村振兴局 | L118: 2022 | M118: 20220718 | N118: 20220919 | O118: 2022 | P118: 118.685 | S118: 118.685 | AA118: 118.685 | AD118: 是 | AE118: 生物性资产 | AF118: 否 | AG118: 不登记资产 | AH118: 消耗性资产
A119: 110 | B119: 三江县 | C119: 产业发展 | D119: 加工流通项目 | E119: 加工业 | F119: 三江侗族自治县_产业项目_三江县老堡乡白文村、同乐乡归东村、同乐乡良冲村茶叶产业加工厂配套附属设施项目 | G119: 5100001089233116 | H119: 三江县老堡乡白文村、同乐乡归东村、同乐乡良冲村茶叶产业加工厂配套附属设施项目，变压器建设 | I119: 老堡乡、同乐苗族乡 | J119: 白文村、归东村、良冲村 | K119: 三江县乡村振兴局 | L119: 2022 | M119: 20220423 | N119: 20220523 | O119: 2022 | P119: 19.0987 | Q119: 19.0987 | Z119: 19.0987 | AD119: 是 | AE119: 厂房等基础设施 | AF119: 是 | AG119: 经营性资产
A120: 111 | B120: 三江县 | C120: 产业发展 | D120: 加工流通项目 | E120: 加工业 | F120: 三江侗族自治县_产业发展_加工流通项目_三江县乡村振兴产业提升项目（丹洲镇江川食品加工厂）（粤桂协作项目） | G120: 5100001099022182 | H120: 在丹洲镇板江社区建设丹洲镇食品加工厂，建筑层数两层，厂房单层建筑面积768.04平方米，总建筑面积1536.08平方米。 | I120: 丹洲镇 | J120: 板江社区 | K120: 三江侗族自治县文化旅游投资发展有限责任公司 | L120: 2022 | M120: 20220627 | N120: 20221226 | O120: 2022 | P120: 528.0409 | S120: 528.0409 | AA120: 528.0409 | AD120: 是 | AE120: 厂房等基础设施 | AF120: 是 | AG120: 经营性资产
A121: 112 | B121: 三江县 | C121: 产业发展 | D121: 加工流通项目 | E121: 加工业 | F121: 三江侗族自治县_产业项目_三江县乡村振兴产业提升项目（斗江镇思欧村江川茶油加工厂）（粤桂协作项目） | G121: 5100001099508064 | H121: 在斗江镇思欧村建设茶油加工厂，规模为两栋一层厂房合计450平方米，设备采购一批。 | I121: 斗江镇 | J121: 思欧村 | K121: 三江县乡村振兴局 | L121: 2022 | M121: 20220610 | N121: 20220824 | O121: 2022 | P121: 283.6409 | S121: 283.6409 | AA121: 283.6409 | AD121: 是 | AE121: 厂房等基础设施 | AF121: 是 | AG121: 经营性资产
A122: 113 | B122: 三江县 | C122: 产业发展 | D122: 加工流通项目 | E122: 加工业 | F122: 三江侗族自治县_产业项目_三江县乡村振兴产业提升项目（八江镇汾水村江川大学生创业园农产品加工厂）（粤桂协作项目） | G122: 5100001099508678 | H122: 在八江镇乡新建村集体经济综合市场，总用地面积1200㎡，3层建筑，总建筑面积1280㎡。 | I122: 八江镇 | J122: 汾水村 | K122: 三江县乡村振兴局 | L122: 2022 | M122: 20220612 | N122: 20221020 | O122: 2022 | P122: 137.158 | S122: 137.158 | AA122: 137.158 | AD122: 是 | AE122: 厂房等基础设施 | AF122: 是 | AG122: 经营性资产
A123: 114 | B123: 三江县 | C123: 产业发展 | D123: 加工流通项目 | E123: 加工业 | F123: 三江侗族自治县_产业项目_三江县仙池公司茶业系列产品加工厂项目 | G123: 5100001099601830 | H123: 三江县仙池公司茶业系列产品加工厂项目新建标准厂房3栋，总建筑面积1.9万平方米。 | I123: 三江侗族自治县 | K123: 三江县发改局 | L123: 2022 | M123: 20220401 | N123: 20221020 | O123: 2022 | P123: 8000 | Y123: 8000 | AC123: 8000 | AD123: 是 | AE123: 厂房等基础设施 | AF123: 否 | AG123: 不登记资产 | AH123: 融资资金
A124: 115 | B124: 三江县 | C124: 产业发展 | D124: 加工流通项目 | E124: 加工业 | F124: 三江侗族自治县_产业项目_三江县和平乡红薯粉厂提升项目 | G124: 5100001122166008 | H124: 通过对板六村红薯粉厂房进行改造提升，带动当地红薯产业发展，年增加村集体经济收入8000元以上，带动村内10户以上农户户均增收2000元以上。 | I124: 和平乡 | J124: 板六村 | K124: 和平乡人民政府 | L124: 2022 | M124: 20220624 | N124: 20220825 | O124: 2022 | P124: 25 | Q124: 25 | AB124: 25 | AD124: 是 | AE124: 厂房等基础设施 | AF124: 否 | AG124: 经营性资产 | AH124: 未完成结算
A125: 116 | B125: 三江县 | C125: 产业发展 | D125: 加工流通项目 | E125: 市场建设和农村物流 | F125: 三江侗族自治县_产业发展_加工流通项目_三江县乡镇村集体经济综合市场项目（八江镇江川村集体经济综合农贸市场）（粤桂协作项目） | G125: 5100001099020743 | H125: 在八江镇乡新建村集体经济综合市场，总用地面积1200㎡，3层建筑，总建筑面积1280㎡。 | I125: 八江镇 | J125: 八江村 | K125: 三江侗族自治县文化旅游投资发展有限责任公司 | L125: 2022 | M125: 20220628 | N125: 20221226 | O125: 2022 | P125: 200 | S125: 200 | AA125: 200 | AD125: 是 | AE125: 综合市场 | AF125: 是 | AG125: 经营性资产
A126: 117 | B126: 三江县 | C126: 产业发展 | D126: 加工流通项目 | E126: 市场建设和农村物流 | F126: 三江侗族自治县_产业发展_加工流通项目_三江县乡镇村集体经济综合市场项目（洋溪乡江川村集体经济综合农贸市场）（粤桂协作项目） | G126: 5100001099503343 | H126: 在洋溪乡新建村集体经济综合市场，3层建筑，总用地面积2855平方米，总建筑面积2579㎡。 | I126: 洋溪乡 | J126: 洋溪村 | K126: 三江侗族自治县文化旅游投资发展有限责任公司 | L126: 2022 | M126: 20220728 | N126: 20221226 | O126: 2022 | P126: 400 | S126: 400 | AA126: 400 | AD126: 是 | AE126: 综合市场 | AF126: 是 | AG126: 经营性资产
A127: 118 | B127: 三江县 | C127: 产业发展 | D127: 加工流通项目 | E127: 市场建设和农村物流 | F127: 三江侗族自治县_产业发展_加工流通项目_三江县乡镇村集体经济综合市场项目（独峒镇江川村集体经济综合农贸市场）（粤桂协作项目） | G127: 5100001099506848 | H127: 在独峒镇新建村集体经济综合市场，总用地面积4439.00㎡，一期3层建筑，总建筑面积3750.82㎡。。 | I127: 独峒镇 | J127: 独峒村 | K127: 三江侗族自治县文化旅游投资发展有限责任公司 | L127: 2022 | M127: 20220720 | N127: 20221226 | O127: 2022 | P127: 300 | S127: 300 | AA127: 300 | AD127: 是 | AE127: 综合市场 | AF127: 是 | AG127: 经营性资产
A128: 119 | B128: 三江县 | C128: 产业发展 | D128: 加工流通项目 | E128: 品牌打造和展销平台 | F128: 三江侗族自治县_产业项目_2022年三江早春茶品牌运营、宣传 | G128: 5100001098981327 | H128: 主要内容：1.网络传播：包含产业大会、推介会、重要媒体等重要活动以及品牌基础传播、发布，品牌在全网进行基础信息的搭建，短视频创意拍摄制，在多平台互动体验内容的铺陈及优化。2.广告投放：主要涵盖区内区外核心城市的交通枢纽，以高铁站或机场广告投放形式为主。3.打造广西“好嘢名录”、“老字号名录”、“驰名商标名录”产品。 | I128: 三江侗族自治县 | K128: 三江县农业农村局 | L128: 2022 | M128: 20220401 | N128: 20221115 | O128: 2022 | P128: 349.78 | Q128: 349.78 | AB128: 349.78 | AD128: 否 | AE128: 无 | AF128: 否 | AG128: 不登记资产
A129: 120 | B129: 三江县 | C129: 产业发展 | D129: 加工流通项目 | E129: 品牌打造和展销平台 | F129: 三江侗族自治县_产业项目_三江农文旅产品展销推介活动（粤桂协作项目） | G129: 5100001099493481 | H129: 到广东省开展三江农特产品交易展销会（50万）和旅游推介活动（25万）；与南方农村报合作，策划开展三江特色产业宣传推介等活动（40万） | I129: 三江侗族自治县 | K129: 三江县供销社 | L129: 2022 | M129: 20220622 | N129: 20221210 | O129: 2022 | P129: 115 | S129: 115 | AA129: 115 | AD129: 否 | AE129: 无 | AF129: 否 | AG129: 不登记资产
A130: 121 | B130: 三江县 | C130: 产业发展 | D130: 配套设施项目 | E130: 小型农田水利设施建设 | F130: 三江侗族自治县_村基础设施_三江县梅林乡梅林村梅林屯后头坪水利项目 | G130: 5100001090309266 | H130: 建40*40三面光水渠181米；建30*30三面光水渠691米。 | I130: 梅林乡 | J130: 梅林村 | K130: 三江县发改局 | L130: 2022 | M130: 20220310 | N130: 20220811 | O130: 2022 | P130: 15 | Q130: 15 | Z130: 15 | AD130: 是 | AE130: 小型农田水利 | AF130: 否 | AG130: 公益性资产 | AH130: 未完成结算
A131: 122 | B131: 三江县 | C131: 产业发展 | D131: 配套设施项目 | E131: 小型农田水利设施建设 | F131: 三江侗族自治县_村基础设施_三江县富禄乡岑洞村本密片水利项目 | G131: 5100001090313316 | H131: 建30*30三面光水渠1436米。 | I131: 富禄苗族乡 | J131: 岑洞村 | K131: 三江县发改局 | L131: 2022 | M131: 20220310 | N131: 20220811 | O131: 2022 | P131: 25 | Q131: 25 | Z131: 25 | AD131: 是 | AE131: 小型农田水利 | AF131: 否 | AG131: 公益性资产 | AH131: 未完成结算
A132: 123 | B132: 三江县 | C132: 产业发展 | D132: 产业服务支撑项目 | E132: 人才培养 | F132: 三江侗族自治县_产业项目_2022年三江县油茶实用技术培训 | G132: 5100001098983687 | H132: 通过开展油茶实用技术培训，提高种植户管护水平，促进农户增产增收。受益10000户，10000人。 | I132: 三江侗族自治县 | K132: 三江县林业局 | L132: 2022 | M132: 20220401 | N132: 20220713 | O132: 2022 | P132: 6 | Q132: 6 | AA132: 6 | AD132: 否 | AE132: 无 | AF132: 否 | AG132: 不登记资产
A133: 124 | B133: 三江县 | C133: 产业发展 | D133: 产业服务支撑项目 | E133: 人才培养 | F133: 三江侗族自治县_产业项目_三江侗族自治县民族手工业实用技术培训项目 | G133: 5100001122159780 | H133: 举办脱贫户（监测户）民族手工业实用技术培训班3期共6天约150人次，包括民族服饰加工设计、刺绣、藤编等民族手工业实用技术。 | I133: 三江侗族自治县 | K133: 三江县委统战部 | L133: 2022 | M133: 20220701 | N133: 20221020 | O133: 2022 | P133: 10 | Q133: 10 | Z133: 10 | AD133: 否 | AE133: 无 | AF133: 否 | AG133: 不登记资产
A134: 125 | B134: 三江县 | C134: 产业发展 | D134: 产业服务支撑项目 | E134: 农业社会化服务 | F134: 三江侗族自治县_产业项目_三江县林业（油茶）高质量发展规划编制项目 | G134: 5100001122218727 | H134: 三江县林业（油茶）高质量发展规划编制项目，聘请专家针对全县林业（油茶）高质量发展制定5-10年规划，为推动林业（油茶）高质量发展提供可行性方案，受益人口12120户38850人。 | I134: 三江侗族自治县 | K134: 三江县林业局 | L134: 2022 | M134: 20220624 | N134: 20221111 | O134: 2022 | P134: 28 | Q134: 28 | AA134: 28 | AD134: 否 | AE134: 无 | AF134: 否 | AG134: 不登记资产
A135: 126 | B135: 三江县 | C135: 产业发展 | D135: 金融保险配套项目 | E135: 小额贷款贴息 | F135: 三江侗族自治县_金融扶贫_2022年三江县扶贫小额信贷贴息资金 | G135: 5100001035081614 | H135: 完成小额扶贫贷款贴息，受益人口4500户18500人。 | I135: 三江侗族自治县 | K135: 三江县乡村振兴局 | L135: 2022 | M135: 20220215 | N135: 20221210 | O135: 2022 | P135: 1800 | Q135: 1800 | Z135: 1200 | AA135: 600 | AD135: 否 | AE135: 无 | AF135: 否 | AG135: 不登记资产
A136: 127 | B136: 三江县 | C136: 产业发展 | D136: 金融保险配套项目 | E136: 小额信贷风险补偿金 | F136: 三江侗族自治县_金融扶贫_2022年脱贫人口小额信贷风险补偿金 | G136: 5100001122174418 | H136: 补充脱贫人口小额信贷风险补偿金900万元，确保小额信贷贷款余额在风险金十倍以内，确保惠民政策落实到位。 | I136: 三江侗族自治县 | K136: 三江县乡村振兴局 | L136: 2022 | M136: 20220615 | N136: 20220630 | O136: 2022 | P136: 900 | Q136: 900 | AA136: 900 | AD136: 否 | AE136: 无 | AF136: 否 | AG136: 不登记资产
A137: 128 | B137: 三江县 | C137: 就业项目 | D137: 就业 | E137: 技能培训 | F137: 三江侗族自治县_就业扶贫_粤桂协作人才振兴项目（粤桂协作项目） | G137: 5100001099496247 | H137: 1.在区内开展乡村振兴驻村工作队（含第一书记）和村级党组织书记乡村振兴培训，提升理论与实践知识，计划开展5期培训509人。2.与华南农业大学合作，定向输送农业技术团队，助力三江农业科技成果转化、优势特色产业开发、农业产业园区和产业化基地建设。 | I137: 三江侗族自治县 | K137: 三江县委组织部 | L137: 2022 | M137: 20220517 | N137: 20221110 | O137: 2022 | P137: 121.3638 | S137: 121.3638 | AA137: 121.3638 | AD137: 否 | AE137: 无 | AF137: 否 | AG137: 不登记资产
A138: 129 | B138: 三江县 | C138: 就业项目 | D138: 创业 | E138: 创业培训 | F138: 三江侗族自治县_就业扶贫_粤桂协作劳务协作项目（粤桂协作项目） | G138: 5100001099022453 | H138: 1.劳务协作项目，包括“点对点”劳务包车和招聘会。2.开展脱贫户就业培训或粤菜师傅培训、南粤家政、南粤绣娘、农村电商培训。 | I138: 三江侗族自治县 | K138: 三江侗族自治县就业服务中心 | L138: 2022 | M138: 20220519 | N138: 20220703 | O138: 2022 | P138: 53.1895 | S138: 53.1895 | AA138: 53.1895 | AD138: 否 | AE138: 无 | AF138: 否 | AG138: 不登记资产
A139: 130 | B139: 三江县 | C139: 就业项目 | D139: 创业 | E139: 创业奖补 | F139: 三江侗族自治县_就业扶贫_2022年三江县就业创业补贴 | G139: 5100001091198847 | H139: 2022年三江县开发乡村建设公益岗性岗位发放岗位补贴，发放一次性外出务工交通补助，发放劳务补助，开展脱贫户技能培训等。 | I139: 三江侗族自治县 | K139: 三江侗族自治县就业服务中心 | L139: 2022 | M139: 20220215 | N139: 20221111 | O139: 2022 | P139: 6565.2229 | Q139: 6565.2229 | Z139: 4746.4963 | AA139: 798.1673 | AB139: 1020.5593 | AD139: 否 | AE139: 无 | AF139: 否 | AG139: 不登记资产
A140: 131 | B140: 三江县 | C140: 乡村建设行动 | D140: 农村基础设施（含产业配套基础设施） | E140: 农村道路建设（通村路、通户路、小型桥梁等） | F140: 三江侗族自治县_村基础设施_三江县老堡乡西边屯道路加宽硬化工程 | G140: 5100001088796828 | H140: 全长0.9公里，路面加宽到4.5米等 | I140: 老堡乡 | J140: 老堡村 | K140: 三江县交通局 | L140: 2022 | M140: 20220329 | N140: 20220622 | O140: 2022 | P140: 87.3287 | Q140: 87.3287 | Z140: 87.3287 | AD140: 是 | AE140: 硬化路 | AF140: 是 | AG140: 公益性资产
A141: 132 | B141: 三江县 | C141: 乡村建设行动 | D141: 农村基础设施（含产业配套基础设施） | E141: 农村道路建设（通村路、通户路、小型桥梁等） | F141: 三江侗族自治县_村基础设施_三江县八江镇布代屯至孟田屯道路提升工程 | G141: 5100001088798703 | H141: 全长7.12公里，路面加宽1米等 | I141: 八江镇 | J141: 布代村 | K141: 三江县交通局 | L141: 2022 | M141: 20220329 | N141: 20221015 | O141: 2022 | P141: 390 | Q141: 390 | Z141: 253 | AA141: 137 | AD141: 是 | AE141: 硬化路 | AF141: 否 | AG141: 公益性资产 | AH141: 未完成结算
A142: 133 | B142: 三江县 | C142: 乡村建设行动 | D142: 农村基础设施（含产业配套基础设施） | E142: 农村道路建设（通村路、通户路、小型桥梁等） | F142: 三江侗族自治县_村基础设施_三江县老堡乡老堡至漾口防护栏安装项目 | G142: 5100001088799498 | H142: 3.8公里波形钢板护栏、交通安全标志标牌标线等 | I142: 老堡乡 | J142: 老堡村 | K142: 三江县交通局 | L142: 2022 | M142: 20220329 | N142: 20220622 | O142: 2022 | P142: 65.505 | Q142: 65.505 | Z142: 65.505 | AD142: 是 | AE142: 道路防护栏 | AF142: 是 | AG142: 公益性资产
A143: 134 | B143: 三江县 | C143: 乡村建设行动 | D143: 农村基础设施（含产业配套基础设施） | E143: 农村道路建设（通村路、通户路、小型桥梁等） | F143: 三江侗族自治县_村基础设施_三江县良口乡和里村道路交通安全工程 | G143: 5100001088800347 | H143: 2.92公里波形钢板护栏、交通安全标志标牌标线等 | I143: 良口乡 | J143: 和里村 | K143: 三江县交通局 | L143: 2022 | M143: 20220329 | N143: 20220622 | O143: 2022 | P143: 64.7065 | Q143: 64.7065 | Z143: 64.7065 | AD143: 是 | AE143: 道路防护栏 | AF143: 是 | AG143: 公益性资产
A144: 135 | B144: 三江县 | C144: 乡村建设行动 | D144: 农村基础设施（含产业配套基础设施） | E144: 农村道路建设（通村路、通户路、小型桥梁等） | F144: 三江侗族自治县_村基础设施_三江县同乐苗族乡八吉村八洞屯至高岜村道路防护栏安装项目 | G144: 5100001088802441 | H144: 2.964公里波形钢板护栏、交通安全标志标牌标线等 | I144: 同乐苗族乡 | J144: 八吉村 | K144: 三江县交通局 | L144: 2022 | M144: 20220329 | N144: 20220720 | O144: 2022 | P144: 63.5668 | Q144: 63.5668 | Z144: 63.5668 | AD144: 是 | AE144: 道路防护栏 | AF144: 是 | AG144: 公益性资产
A145: 136 | B145: 三江县 | C145: 乡村建设行动 | D145: 农村基础设施（含产业配套基础设施） | E145: 农村道路建设（通村路、通户路、小型桥梁等） | F145: 三江侗族自治县_村基础设施_三江县丹洲镇板必村立新桥 | G145: 5100001088804319 | H145: 桥宽5.5米，长约27延米 | I145: 丹洲镇 | J145: 板必村 | K145: 三江县交通局 | L145: 2022 | M145: 20220329 | N145: 20220715 | O145: 2022 | P145: 91.7638 | Q145: 91.7638 | Z145: 91.7638 | AD145: 是 | AE145: 桥梁 | AF145: 是 | AG145: 公益性资产
A146: 137 | B146: 三江县 | C146: 乡村建设行动 | D146: 农村基础设施（含产业配套基础设施） | E146: 农村道路建设（通村路、通户路、小型桥梁等） | F146: 三江侗族自治县_村基础设施_三江县丹洲镇板必村呈祥桥 | G146: 5100001088805580 | H146: 桥宽5.5米，长约16延米 | I146: 丹洲镇 | J146: 板必村 | K146: 三江县交通局 | L146: 2022 | M146: 20220329 | N146: 20220622 | O146: 2022 | P146: 63.7749 | Q146: 63.7749 | Z146: 63.7749 | AD146: 是 | AE146: 桥梁 | AF146: 是 | AG146: 公益性资产
A147: 138 | B147: 三江县 | C147: 乡村建设行动 | D147: 农村基础设施（含产业配套基础设施） | E147: 农村道路建设（通村路、通户路、小型桥梁等） | F147: 三江侗族自治县_村基础设施_三江县和平乡板六村伍家桥 | G147: 5100001088807095 | H147: 桥宽7.5米，35.04延米 | I147: 和平乡 | J147: 板六村 | K147: 三江县交通局 | L147: 2022 | M147: 20220329 | N147: 20220919 | O147: 2022 | P147: 187.2697 | Q147: 187.2697 | Z147: 187.2697 | AD147: 是 | AE147: 桥梁 | AF147: 是 | AG147: 公益性资产
A148: 139 | B148: 三江县 | C148: 乡村建设行动 | D148: 农村基础设施（含产业配套基础设施） | E148: 农村道路建设（通村路、通户路、小型桥梁等） | F148: 三江侗族自治县_村基础设施_三江县和平乡板六村寨脉桥 | G148: 5100001088807760 | H148: 桥宽7.5米，35.04延米 | I148: 和平乡 | J148: 板六村 | K148: 三江县交通局 | L148: 2022 | M148: 20220329 | N148: 20220920 | O148: 2022 | P148: 198.9206 | Q148: 198.9206 | Z148: 198.9206 | AD148: 是 | AE148: 桥梁 | AF148: 是 | AG148: 公益性资产
A149: 140 | B149: 三江县 | C149: 乡村建设行动 | D149: 农村基础设施（含产业配套基础设施） | E149: 农村道路建设（通村路、通户路、小型桥梁等） | F149: 三江侗族自治县_村基础设施_三江县斗江镇周牙村周牙至凤凰道路工程 | G149: 5100001090078123 | H149: 全长4.717公里，路基5.5米，路面4.5米，波形钢板护栏等 | I149: 斗江镇 | J149: 周牙村 | K149: 三江县交通局 | L149: 2022 | M149: 20220329 | N149: 20221115 | O149: 2022 | P149: 501 | Q149: 501 | Z149: 501 | AD149: 是 | AE149: 硬化路 | AF149: 否 | AG149: 公益性资产 | AH149: 未完成结算
A150: 141 | B150: 三江县 | C150: 乡村建设行动 | D150: 农村基础设施（含产业配套基础设施） | E150: 农村道路建设（通村路、通户路、小型桥梁等） | F150: 三江侗族自治县_村基础设施_三江县洋溪乡洋溪村寨弯码头至球场道路硬化三期项目 | G150: 5100001090099366 | H150: 硬化道路长687m，防护栏300米，水渠550米 | I150: 洋溪乡 | J150: 洋溪村 | K150: 三江县发改局 | L150: 2022 | M150: 20220301 | N150: 20220508 | O150: 2022 | P150: 83.6403 | Q150: 83.6403 | Z150: 83.6403 | AD150: 是 | AE150: 硬化路 | AF150: 是 | AG150: 公益性资产
A151: 142 | B151: 三江县 | C151: 乡村建设行动 | D151: 农村基础设施（含产业配套基础设施） | E151: 农村道路建设（通村路、通户路、小型桥梁等） | F151: 三江侗族自治县_村基础设施_三江县林溪镇美俗村美俗村屯道路扩建项目 | G151: 5100001090100188 | H151: 盖板涵一座，C25毛石混凝土挡土墙长241米，964.61立方米。 | I151: 林溪镇 | J151: 美俗村 | K151: 三江县发改局 | L151: 2022 | M151: 20220301 | N151: 20220502 | O151: 2022 | P151: 104.6709 | Q151: 104.6709 | Z151: 104.6709 | AD151: 是 | AE151: 硬化路 | AF151: 是 | AG151: 公益性资产
A152: 143 | B152: 三江县 | C152: 乡村建设行动 | D152: 农村基础设施（含产业配套基础设施） | E152: 农村道路建设（通村路、通户路、小型桥梁等） | F152: 三江侗族自治县_村基础设施_三江县斗江镇周牙村洲北（甘洞）至周牙道路工程 | G152: 5100001090101365 | H152: 全长5.673公里，路基5.5米，路面4.5米，波形钢板护栏等 | I152: 斗江镇 | J152: 周牙村 | K152: 三江县交通局 | L152: 2022 | M152: 20220329 | N152: 20221226 | O152: 2022 | P152: 575 | Q152: 575 | Z152: 575 | AD152: 是 | AE152: 硬化路 | AF152: 否 | AG152: 公益性资产 | AH152: 未完成结算
A153: 144 | B153: 三江县 | C153: 乡村建设行动 | D153: 农村基础设施（含产业配套基础设施） | E153: 农村道路建设（通村路、通户路、小型桥梁等） | F153: 三江侗族自治县_村基础设施_三江县同乐乡高洋村至独峒镇唐朝村道路硬化项目（通往高速路口) | G153: 5100001090102292 | H153: 全长7.729公里，路基5.5米，路面4.5米，波形钢板护栏等 | I153: 同乐苗族乡 | J153: 高洋村 | K153: 三江县交通局 | L153: 2022 | M153: 20220329 | N153: 20221230 | O153: 2022 | P153: 400 | Q153: 400 | Z153: 400 | AD153: 是 | AE153: 硬化路 | AF153: 否 | AG153: 公益性资产 | AH153: 未完成结算
A154: 145 | B154: 三江县 | C154: 乡村建设行动 | D154: 农村基础设施（含产业配套基础设施） | E154: 农村道路建设（通村路、通户路、小型桥梁等） | F154: 三江侗族自治县_村基础设施_三江县洋溪乡波里村归能屯至玉民村乌杠屯硬化道路工程 | G154: 5100001090152788 | H154: 全长9.533公里，路基5.5米，路面4.5米，波形钢板护栏等 | I154: 洋溪乡 | J154: 波里村 | K154: 三江县交通局 | L154: 2022 | M154: 20220329 | N154: 20221015 | O154: 2022 | P154: 948 | Q154: 948 | AA154: 948 | AD154: 是 | AE154: 硬化路 | AF154: 否 | AG154: 公益性资产 | AH154: 未完成结算
A155: 146 | B155: 三江县 | C155: 乡村建设行动 | D155: 农村基础设施（含产业配套基础设施） | E155: 农村道路建设（通村路、通户路、小型桥梁等） | F155: 三江侗族自治县_村基础设施_三江县良口乡仁塘村中寨道路硬化（二期）项目 | G155: 5100001090285933 | H155: 道路硬化415米，路面宽4米。防护工程526立方米。新建30吨水池一个及DN50PE引水管1200米。 | I155: 良口乡 | J155: 仁塘村 | K155: 三江县发改局 | L155: 2022 | M155: 20220228 | N155: 20220508 | O155: 2022 | P155: 92.8839 | Q155: 92.8839 | Z155: 92.8839 | AD155: 是 | AE155: 硬化路 | AF155: 是 | AG155: 公益性资产
A156: 147 | B156: 三江县 | C156: 乡村建设行动 | D156: 农村基础设施（含产业配套基础设施） | E156: 农村道路建设（通村路、通户路、小型桥梁等） | F156: 三江侗族自治县_村基础设施_三江县斗江镇滩底村滩底屯小学底道路桥项目 | G156: 5100001090288255 | H156: 1、道路长40米宽4.5米。2、C25毛石混凝土挡土墙898.6立方。3、现浇3跨梁板桥总长42米. | I156: 斗江镇 | J156: 滩底村 | K156: 三江县发改局 | L156: 2022 | M156: 20220301 | N156: 20221005 | O156: 2022 | P156: 210 | Q156: 210 | Z156: 210 | AD156: 是 | AE156: 桥梁 | AF156: 否 | AG156: 公益性资产 | AH156: 未完成结算
A157: 148 | B157: 三江县 | C157: 乡村建设行动 | D157: 农村基础设施（含产业配套基础设施） | E157: 农村道路建设（通村路、通户路、小型桥梁等） | F157: 三江侗族自治县_村基础设施_三江县程村乡泗里村泠槽至老堡漾口村道路项目（泗里桥至泠槽段） | G157: 5100001090291451 | H157: 道路扩宽1.9米，长度1370米，路面宽度4.5米。 | I157: 程村乡 | J157: 泗里村 | K157: 三江县发改局 | L157: 2022 | M157: 20220301 | N157: 20220708 | O157: 2022 | P157: 116.8193 | Q157: 116.8193 | Z157: 116.8193 | AD157: 是 | AE157: 桥梁 | AF157: 否 | AG157: 公益性资产 | AH157: 未完成结算
A158: 149 | B158: 三江县 | C158: 乡村建设行动 | D158: 农村基础设施（含产业配套基础设施） | E158: 农村道路建设（通村路、通户路、小型桥梁等） | F158: 三江侗族自治县_村基础设施_斗江镇凤凰村瓦瑶屯（二桥）建设项目 | G158: 5100001090332232 | H158: 新建道路桥长16延米，宽5.5米 | I158: 斗江镇 | J158: 凤凰村 | K158: 三江县发改局 | L158: 2022 | M158: 20220630 | N158: 20220805 | O158: 2022 | P158: 71.1603 | Q158: 71.1603 | Z158: 71.1603 | AD158: 是 | AE158: 桥梁 | AF158: 是 | AG158: 公益性资产
A159: 150 | B159: 三江县 | C159: 乡村建设行动 | D159: 农村基础设施（含产业配套基础设施） | E159: 农村道路建设（通村路、通户路、小型桥梁等） | F159: 三江侗族自治县_村基础设施_古宜镇文大村下引木屯道路硬化改建二期项目 | G159: 5100001090351167 | H159: 新建道路硬化长330米；C25毛石砼挡土墙618立方米。 | I159: 古宜镇 | J159: 文大村 | K159: 三江县发改局 | L159: 2022 | M159: 20220630 | N159: 20220930 | O159: 2022 | P159: 70.8397 | Q159: 70.8397 | Z159: 70.8397 | AD159: 是 | AE159: 硬化路 | AF159: 否 | AG159: 公益性资产 | AH159: 未完成结算
A160: 151 | B160: 三江县 | C160: 乡村建设行动 | D160: 农村基础设施（含产业配套基础设施） | E160: 农村道路建设（通村路、通户路、小型桥梁等） | F160: 三江侗族自治县_村基础设施_三江县林溪镇平岩村平坦屯道路桥梁项目 | G160: 5100001093302752 | H160: 三江县林溪镇平岩村平坦屯道路桥梁项目，桥梁一座0.0135公里，宽5.5米 | I160: 林溪镇 | J160: 平岩村 | K160: 三江县乡村振兴局 | L160: 2022 | M160: 20220323 | N160: 20220622 | O160: 2022 | P160: 44.599 | Q160: 44.599 | AA160: 10 | AB160: 34.599 | AD160: 是 | AE160: 桥梁 | AF160: 是 | AG160: 公益性资产
A161: 152 | B161: 三江县 | C161: 乡村建设行动 | D161: 农村基础设施（含产业配套基础设施） | E161: 农村道路建设（通村路、通户路、小型桥梁等） | F161: 三江侗族自治县_村基础设施_三江县村（屯）级道路桥梁（江川下都桥）工程（粤桂协作项目） | G161: 5100001099019007 | H161: 新建长22米，宽6.5米桥梁一座 | I161: 斗江镇 | J161: 牙林村 | K161: 三江县交通局 | L161: 2022 | M161: 20220519 | N161: 20220910 | O161: 2022 | P161: 146.992 | S161: 146.992 | AA161: 146.992 | AD161: 是 | AE161: 桥梁 | AF161: 是 | AG161: 公益性资产
A162: 153 | B162: 三江县 | C162: 乡村建设行动 | D162: 农村基础设施（含产业配套基础设施） | E162: 农村道路建设（通村路、通户路、小型桥梁等） | F162: 三江侗族自治县_生活条件改善_三江县同乐苗族乡高旁村高旁屯上鼓楼至下鼓楼村内连接路硬化工程 | G162: 5100001122206378 | H162: 硬化宽6米，长60米水泥路 | I162: 同乐苗族乡 | J162: 高旁村 | K162: 三江县乡村振兴局 | L162: 2022 | M162: 20220701 | N162: 20221101 | O162: 2022 | P162: 35 | Q162: 35 | Z162: 35 | AD162: 是 | AE162: 硬化路 | AF162: 否 | AG162: 公益性资产 | AH162: 未完成结算
A163: 154 | B163: 三江县 | C163: 乡村建设行动 | D163: 农村基础设施（含产业配套基础设施） | E163: 农村道路建设（通村路、通户路、小型桥梁等） | F163: 三江侗族自治县_村基础设施_江峰南路连接线至竹寨道路工程二期 | G163: 5100001122471799 | H163: 新建道路长189平方米、护栏55米 | I163: 古宜镇 | K163: 三江县住建局 | L163: 2022 | M163: 20220517 | N163: 20220809 | O163: 2022 | P163: 24.9002 | Q163: 24.9002 | AB163: 24.9002 | AD163: 是 | AE163: 硬化路 | AF163: 是 | AG163: 公益性资产
A164: 155 | B164: 三江县 | C164: 乡村建设行动 | D164: 农村基础设施（含产业配套基础设施） | E164: 农村道路建设（通村路、通户路、小型桥梁等） | F164: 三江侗族自治县_村基础设施_老堡乡塘库村下寨屯道路提升工程 | G164: 5100001122479653 | H164: 道路6598平方米长，平均宽度约3.5米的道路新建提升及附属设施 | I164: 老堡乡 | J164: 塘库村 | K164: 三江县住建局 | L164: 2022 | M164: 20220610 | N164: 20220625 | O164: 2022 | P164: 75.0319 | Q164: 75.0319 | AB164: 75.0319 | AD164: 是 | AE164: 硬化路 | AF164: 是 | AG164: 公益性资产
A165: 156 | B165: 三江县 | C165: 乡村建设行动 | D165: 农村基础设施（含产业配套基础设施） | E165: 农村道路建设（通村路、通户路、小型桥梁等） | F165: 三江侗族自治县_村基础设施_三江县斗江镇凤凰村中广屯至沙宜村界脚屯通村道路扩宽项目 | G165: 5100001135911963 | H165: 三江县斗江镇凤凰村中广屯至沙宜村界脚屯通村道路扩宽项目,路面扩宽7公里 | I165: 斗江镇 | J165: 凤凰村 | K165: 三江县乡村振兴局 | L165: 2022 | M165: 20220323 | N165: 20221013 | O165: 2022 | P165: 216 | Q165: 216 | AA165: 30 | AB165: 186 | AD165: 是 | AE165: 硬化路 | AF165: 否 | AG165: 公益性资产 | AH165: 未完成结算
A166: 157 | B166: 三江县 | C166: 乡村建设行动 | D166: 农村基础设施（含产业配套基础设施） | E166: 农村道路建设（通村路、通户路、小型桥梁等） | F166: 三江侗族自治县_村基础设施_三江县梅林乡石碑村通屯路项目 | G166: 5100001135923068 | H166: 三江县梅林乡石碑村通屯路项目，新建道路0.532公里， | I166: 梅林乡 | J166: 石碑村 | K166: 三江县乡村振兴局 | L166: 2022 | M166: 20220322 | N166: 20221220 | O166: 2022 | P166: 74 | Q166: 74 | AA166: 20 | AB166: 54 | AD166: 是 | AE166: 砂石路 | AF166: 否 | AG166: 公益性资产 | AH166: 未完成结算
A167: 158 | B167: 三江县 | C167: 乡村建设行动 | D167: 农村基础设施（含产业配套基础设施） | E167: 农村道路建设（通村路、通户路、小型桥梁等） | F167: 三江侗族自治县_村基础设施_三江县洋溪乡玉民村香耶屯至引乌苏道路硬化项目 | G167: 5100001135946222 | H167: 三江县洋溪乡玉民村香耶屯至引乌苏道路硬化项目，道路硬化697米，挡土墙237.5m³ | I167: 洋溪乡 | J167: 玉民村 | K167: 三江县乡村振兴局 | L167: 2022 | M167: 20220323 | N167: 20220809 | O167: 2022 | P167: 54.7504 | Q167: 54.7504 | Z167: 25 | AA167: 2.7 | AB167: 27.0504 | AD167: 是 | AE167: 硬化路、挡土墙 | AF167: 是 | AG167: 公益性资产
A168: 159 | B168: 三江县 | C168: 乡村建设行动 | D168: 农村基础设施（含产业配套基础设施） | E168: 农村道路建设（通村路、通户路、小型桥梁等） | F168: 三江侗族自治县_村基础设施_三江县洋溪乡玉民村上寨屯至羊立井水道路硬化项目 | G168: 5100001135985975 | H168: 三江县洋溪乡玉民村上寨屯至羊立井水道路硬化项目，道路硬化0.205公里。 | I168: 洋溪乡 | J168: 玉民村 | K168: 三江县乡村振兴局 | L168: 2022 | M168: 20220427 | N168: 20221220 | O168: 2022 | P168: 13 | Q168: 13 | AB168: 13 | AD168: 是 | AE168: 硬化路 | AF168: 否 | AG168: 公益性资产 | AH168: 未完成结算
A169: 160 | B169: 三江县 | C169: 乡村建设行动 | D169: 农村基础设施（含产业配套基础设施） | E169: 农村道路建设（通村路、通户路、小型桥梁等） | F169: 三江侗族自治县_村基础设施_三江县洋溪乡良培村培吉屯通屯道路硬化项目 | G169: 5100001136006781 | H169: 新建长0.216公里硬化道路 | I169: 洋溪乡 | J169: 良培村 | K169: 三江县乡村振兴局 | L169: 2022 | M169: 20220323 | N169: 20220420 | O169: 2022 | P169: 15 | Q169: 15 | AA169: 3 | AB169: 12 | AD169: 是 | AE169: 硬化路 | AF169: 否 | AG169: 公益性资产 | AH169: 未完成结算
A170: 161 | B170: 三江县 | C170: 乡村建设行动 | D170: 农村基础设施（含产业配套基础设施） | E170: 农村道路建设（通村路、通户路、小型桥梁等） | F170: 三江侗族自治县_村基础设施_三江县林溪镇合华村合善屯进寨道路硬化项目 | G170: 5100001136035506 | H170: 三江县林溪镇合华村合善屯进寨道路硬化项目，道路硬化0.514公里，挡土墙390.92m³ | I170: 林溪镇 | J170: 合华村 | K170: 三江县乡村振兴局 | L170: 2022 | M170: 20220331 | N170: 20220530 | O170: 2022 | P170: 33.5485 | Q170: 33.5485 | AB170: 33.5485 | AD170: 是 | AE170: 硬化路 | AF170: 是 | AG170: 公益性资产
A171: 162 | B171: 三江县 | C171: 乡村建设行动 | D171: 农村基础设施（含产业配套基础设施） | E171: 农村供水保障设施建设 | F171: 三江侗族自治县_生活条件改善_三江县梅林乡新民村平等人饮项目 | G171: 5100001090324015 | H171: 沉砂池一个，拦水坝一座，管道长7821米 | I171: 梅林乡 | J171: 新民村 | K171: 三江县发改局 | L171: 2022 | M171: 20220302 | N171: 20220708 | O171: 2022 | P171: 71.9856 | Q171: 71.9856 | Z171: 71.9856 | AD171: 是 | AE171: 安全饮水工程 | AF171: 是 | AG171: 公益性资产
A172: 163 | B172: 三江县 | C172: 乡村建设行动 | D172: 农村基础设施（含产业配套基础设施） | E172: 农村供水保障设施建设 | F172: 三江侗族自治县_生活条件改善_2022年三江县乡镇农村饮水抢修工程（同乐乡） | G172: 5100001092803373 | H172: 因冰冻灾害损毁人饮工程，维修抢修村屯人饮。 | I172: 同乐苗族乡 | K172: 三江县水利局 | L172: 2022 | M172: 20220216 | N172: 20220308 | O172: 2022 | P172: 16.8644 | Q172: 16.8644 | Z172: 16.8644 | AD172: 是 | AE172: 安全饮水工程 | AF172: 是 | AG172: 公益性资产
A173: 164 | B173: 三江县 | C173: 乡村建设行动 | D173: 农村基础设施（含产业配套基础设施） | E173: 农村供水保障设施建设 | F173: 三江侗族自治县_生活条件改善_2022年三江县乡镇农村饮水抢修工程（富禄乡） | G173: 5100001092803373 | H173: 因冰冻灾害损毁人饮工程，维修抢修村屯人饮。 | I173: 富禄苗族乡 | K173: 三江县水利局 | L173: 2022 | M173: 20220216 | N173: 20220308 | O173: 2022 | P173: =SUM(Q173:Y173) -> 16.2771 | Q173: 16.2771 | Z173: 16.2771 | AD173: 是 | AE173: 安全饮水工程 | AF173: 是 | AG173: 公益性资产
A174: 165 | B174: 三江县 | C174: 乡村建设行动 | D174: 农村基础设施（含产业配套基础设施） | E174: 农村供水保障设施建设 | F174: 三江侗族自治县_生活条件改善_2022年三江县乡镇农村饮水抢修工程（独峒镇） | G174: 5100001092803373 | H174: 因冰冻灾害损毁人饮工程，维修抢修村屯人饮。 | I174: 独峒镇 | K174: 三江县水利局 | L174: 2022 | M174: 20220216 | N174: 20220308 | O174: 2022 | P174: 12.878 | Q174: 12.878 | Z174: 12.878 | AD174: 是 | AE174: 安全饮水工程 | AF174: 是 | AG174: 公益性资产
A175: 166 | B175: 三江县 | C175: 乡村建设行动 | D175: 农村基础设施（含产业配套基础设施） | E175: 农村供水保障设施建设 | F175: 三江侗族自治县_生活条件改善_2022年三江县乡镇农村饮水抢修工程（八江镇） | G175: 5100001092803373 | H175: 因冰冻灾害损毁人饮工程，维修抢修村屯人饮。 | I175: 八江镇 | K175: 三江县水利局 | L175: 2022 | M175: 20220216 | N175: 20220308 | O175: 2022 | P175: 17.0101 | Q175: 17.0101 | Z175: 17.0101 | AD175: 是 | AE175: 安全饮水工程 | AF175: 是 | AG175: 公益性资产
A176: 167 | B176: 三江县 | C176: 乡村建设行动 | D176: 农村基础设施（含产业配套基础设施） | E176: 农村供水保障设施建设 | F176: 三江侗族自治县_生活条件改善_2022年三江县乡镇农村饮水抢修工程（古宜镇） | G176: 5100001092803373 | H176: 因冰冻灾害损毁人饮工程，维修抢修村屯人饮。 | I176: 古宜镇 | K176: 三江县水利局 | L176: 2022 | M176: 20220216 | N176: 20220308 | O176: 2022 | P176: 1.0774 | Q176: 1.0774 | Z176: 1.0774 | AD176: 是 | AE176: 安全饮水工程 | AF176: 是 | AG176: 公益性资产
A177: 168 | B177: 三江县 | C177: 乡村建设行动 | D177: 农村基础设施（含产业配套基础设施） | E177: 农村供水保障设施建设 | F177: 三江侗族自治县_生活条件改善_2022年三江县乡镇农村饮水抢修工程（林溪镇） | G177: 5100001092803373 | H177: 因冰冻灾害损毁人饮工程，维修抢修村屯人饮。 | I177: 林溪镇 | K177: 三江县水利局 | L177: 2022 | M177: 20220216 | N177: 20220308 | O177: 2022 | P177: 25.4951 | Q177: 25.4951 | Z177: 25.4951 | AD177: 是 | AE177: 安全饮水工程 | AF177: 是 | AG177: 公益性资产
A178: 169 | B178: 三江县 | C178: 乡村建设行动 | D178: 农村基础设施（含产业配套基础设施） | E178: 农村供水保障设施建设 | F178: 三江侗族自治县_生活条件改善_2022年三江县乡镇农村饮水抢修工程（良口乡） | G178: 5100001092803373 | H178: 因冰冻灾害损毁人饮工程，维修抢修村屯人饮。 | I178: 良口乡 | K178: 三江县水利局 | L178: 2022 | M178: 20220216 | N178: 20220308 | O178: 2022 | P178: 6.7772 | Q178: 6.7772 | Z178: 6.7772 | AD178: 是 | AE178: 安全饮水工程 | AF178: 是 | AG178: 公益性资产
A179: 170 | B179: 三江县 | C179: 乡村建设行动 | D179: 农村基础设施（含产业配套基础设施） | E179: 农村供水保障设施建设 | F179: 三江侗族自治县_生活条件改善_2022年三江县乡镇农村饮水抢修工程（斗江镇） | G179: 5100001092803373 | H179: 因冰冻灾害损毁人饮工程，维修抢修村屯人饮。 | I179: 斗江镇 | K179: 三江县水利局 | L179: 2022 | M179: 20220216 | N179: 20220308 | O179: 2022 | P179: 6.4053 | Q179: 6.4053 | Z179: 6.4053 | AD179: 是 | AE179: 安全饮水工程 | AF179: 是 | AG179: 公益性资产
A180: 171 | B180: 三江县 | C180: 乡村建设行动 | D180: 农村基础设施（含产业配套基础设施） | E180: 农村供水保障设施建设 | F180: 三江侗族自治县_生活条件改善_2022年三江县乡镇农村饮水抢修工程（丹洲镇） | G180: 5100001092803373 | H180: 因冰冻灾害损毁人饮工程，维修抢修村屯人饮。 | I180: 丹洲镇 | K180: 三江县水利局 | L180: 2022 | M180: 20220216 | N180: 20220308 | O180: 2022 | P180: 1.9876 | Q180: 1.9876 | Z180: 1.9876 | AD180: 是 | AE180: 安全饮水工程 | AF180: 是 | AG180: 公益性资产
A181: 172 | B181: 三江县 | C181: 乡村建设行动 | D181: 农村基础设施（含产业配套基础设施） | E181: 农村供水保障设施建设 | F181: 三江侗族自治县_生活条件改善_2022年三江县乡镇农村饮水抢修工程（和平乡） | G181: 5100001092803373 | H181: 因冰冻灾害损毁人饮工程，维修抢修村屯人饮。 | I181: 和平乡 | K181: 三江县水利局 | L181: 2022 | M181: 20220216 | N181: 20220308 | O181: 2022 | P181: 4.2576 | Q181: 4.2576 | Z181: 4.2576 | AD181: 是 | AE181: 安全饮水工程 | AF181: 是 | AG181: 公益性资产
A182: 173 | B182: 三江县 | C182: 乡村建设行动 | D182: 农村基础设施（含产业配套基础设施） | E182: 农村供水保障设施建设 | F182: 三江侗族自治县_生活条件改善_2022年三江县乡镇农村饮水抢修工程（老堡乡） | G182: 5100001092803373 | H182: 因冰冻灾害损毁人饮工程，维修抢修村屯人饮。 | I182: 老堡乡 | K182: 三江县水利局 | L182: 2022 | M182: 20220216 | N182: 20220308 | O182: 2022 | P182: 21.0567 | Q182: 21.0567 | Z182: 21.0567 | AD182: 是 | AE182: 安全饮水工程 | AF182: 是 | AG182: 公益性资产
A183: 174 | B183: 三江县 | C183: 乡村建设行动 | D183: 农村基础设施（含产业配套基础设施） | E183: 农村供水保障设施建设 | F183: 三江侗族自治县_生活条件改善_2022年三江县乡镇农村饮水抢修工程（程村乡） | G183: 5100001092803373 | H183: 因冰冻灾害损毁人饮工程，维修抢修村屯人饮。 | I183: 程村乡 | K183: 三江县水利局 | L183: 2022 | M183: 20220216 | N183: 20220308 | O183: 2022 | P183: 2.184 | Q183: 2.184 | Z183: 2.184 | AD183: 是 | AE183: 安全饮水工程 | AF183: 是 | AG183: 公益性资产
A184: 175 | B184: 三江县 | C184: 乡村建设行动 | D184: 农村基础设施（含产业配套基础设施） | E184: 农村供水保障设施建设 | F184: 三江侗族自治县_生活条件改善_2022年三江县乡镇农村饮水抢修工程（高基乡） | G184: 5100001092803373 | H184: 因冰冻灾害损毁人饮工程，维修抢修村屯人饮。 | I184: 高基瑶族乡 | K184: 三江县水利局 | L184: 2022 | M184: 20220216 | N184: 20220308 | O184: 2022 | P184: 0.378 | Q184: 0.378 | Z184: 0.378 | AD184: 是 | AE184: 安全饮水工程 | AF184: 是 | AG184: 公益性资产
A185: 176 | B185: 三江县 | C185: 乡村建设行动 | D185: 农村基础设施（含产业配套基础设施） | E185: 农村供水保障设施建设 | F185: 三江侗族自治县_生活条件改善_三江县斗江镇斗江社区大办易安家园小区巩固安全饮水工程（易安后扶） | G185: 5100001093297333 | H185: 三江县斗江镇斗江社区大办易安家园小区巩固安全饮水工程（易安后扶），新建抽水机井一座 | I185: 斗江镇 | J185: 斗江社区 | K185: 三江县水利局 | L185: 2022 | M185: 20220622 | N185: 20221020 | O185: 2022 | P185: =SUM(Q185:Y185) -> 37.4882 | Q185: 37.4882 | AB185: 37.4882 | AD185: 是 | AE185: 安全饮水工程 | AF185: 是 | AG185: 公益性资产
A186: 177 | B186: 三江县 | C186: 乡村建设行动 | D186: 农村基础设施（含产业配套基础设施） | E186: 农村供水保障设施建设 | F186: 三江侗族自治县_生活条件改善_三江县林溪镇林溪社区巩固安全饮水新增工程 | G186: 5100001093315320 | H186: 三江县林溪镇林溪社区巩固安全饮水新增工程1处 | I186: 林溪镇 | J186: 林溪社区 | K186: 三江县水利局 | L186: 2022 | M186: 20220316 | N186: 20220721 | O186: 2022 | P186: 56.9882 | Q186: 56.9882 | AB186: 56.9882 | AD186: 是 | AE186: 安全饮水工程 | AF186: 是 | AG186: 公益性资产
A187: 178 | B187: 三江县 | C187: 乡村建设行动 | D187: 农村基础设施（含产业配套基础设施） | E187: 农村供水保障设施建设 | F187: 三江侗族自治县_生活条件改善_三江县林溪镇牙己村美代屯区巩固安全饮水工程 | G187: 5100001093370596 | H187: 三江县林溪镇牙己村美代屯区巩固安全饮水工程1个 | I187: 林溪镇 | J187: 牙己村 | K187: 三江县水利局 | L187: 2022 | M187: 20220316 | N187: 20220730 | O187: 2022 | P187: 22.6333 | Q187: 22.6333 | AB187: 22.6333 | AD187: 是 | AE187: 安全饮水工程 | AF187: 是 | AG187: 公益性资产
A188: 179 | B188: 三江县 | C188: 乡村建设行动 | D188: 农村基础设施（含产业配套基础设施） | E188: 农村供水保障设施建设 | F188: 三江侗族自治县_生活条件改善_三江县梅林乡梅林村梅林屯巩固安全饮水工程 | G188: 5100001093371737 | H188: 三江县梅林乡梅林村梅林屯巩固安全饮水工程1个 | I188: 梅林乡 | J188: 梅林村 | K188: 三江县水利局 | L188: 2022 | M188: 20220316 | N188: 20220627 | O188: 2022 | P188: 18.5016 | Q188: 18.5016 | AB188: 18.5016 | AD188: 是 | AE188: 安全饮水工程 | AF188: 是 | AG188: 公益性资产
A189: 180 | B189: 三江县 | C189: 乡村建设行动 | D189: 农村基础设施（含产业配套基础设施） | E189: 农村供水保障设施建设 | F189: 三江侗族自治县_生活条件改善_三江县斗江镇周牙村石人牙屯、周牙屯八队巩固安全饮水工程 | G189: 5100001093374502 | H189: 三江县斗江镇周牙村石人牙屯、周牙屯八队巩固安全饮水工程1处 | I189: 斗江镇 | J189: 周牙村 | K189: 三江县水利局 | L189: 2022 | M189: 20220320 | N189: 20220614 | O189: 2022 | P189: 4.8117 | Q189: 4.8117 | Z189: 3.3233 | AB189: 1.4884 | AD189: 是 | AE189: 安全饮水工程 | AF189: 是 | AG189: 公益性资产
A190: 181 | B190: 三江县 | C190: 乡村建设行动 | D190: 农村基础设施（含产业配套基础设施） | E190: 农村供水保障设施建设 | F190: 三江侗族自治县_生活条件改善_三江县梅林乡石碑村巩固安全饮水工程 | G190: 5100001093375421 | H190: 三江县梅林乡石碑村巩固安全饮水工程1个 | I190: 梅林乡 | J190: 石碑村 | K190: 三江县水利局 | L190: 2022 | M190: 20220316 | N190: 20220727 | O190: 2022 | P190: 23.6248 | Q190: 23.6248 | AB190: 23.6248 | AD190: 是 | AE190: 安全饮水工程 | AF190: 是 | AG190: 公益性资产
A191: 182 | B191: 三江县 | C191: 乡村建设行动 | D191: 农村基础设施（含产业配套基础设施） | E191: 农村供水保障设施建设 | F191: 三江侗族自治县_生活条件改善_三江县斗江镇沙谊村平尾屯巩固安全饮水工程 | G191: 5100001093376727 | H191: 三江县斗江镇沙宜村那晚屯巩固安全饮水工程1个 | I191: 斗江镇 | J191: 沙宜村 | K191: 三江县水利局 | L191: 2022 | M191: 20220316 | N191: 20220712 | O191: 2022 | P191: 12.9117 | Q191: 12.9117 | Z191: 11.2416 | AB191: 1.6701 | AD191: 是 | AE191: 安全饮水工程 | AF191: 是 | AG191: 公益性资产
A192: 183 | B192: 三江县 | C192: 乡村建设行动 | D192: 农村基础设施（含产业配套基础设施） | E192: 农村供水保障设施建设 | F192: 三江侗族自治县_生活条件改善_三江县斗江镇沙宜村田段屯巩固安全饮水工程 | G192: 5100001093377834 | H192: 三江县斗江镇沙宜村田段屯巩固安全饮水工程1处 | I192: 斗江镇 | J192: 沙宜村 | K192: 三江县水利局 | L192: 2022 | M192: 20220320 | N192: 20220712 | O192: 2022 | P192: 18.1685 | Q192: 18.1685 | Z192: 9.7055 | AB192: 8.463 | AD192: 是 | AE192: 安全饮水工程 | AF192: 是 | AG192: 公益性资产
A193: 184 | B193: 三江县 | C193: 乡村建设行动 | D193: 农村基础设施（含产业配套基础设施） | E193: 农村供水保障设施建设 | F193: 三江侗族自治县_生活条件改善_三江县富禄乡高安村巩固安全饮水工程 | G193: 5100001095330712 | H193: 新建拦水坝、过滤池、200m3水池1座，寨上管网8017米 | I193: 富禄苗族乡 | J193: 高安村 | K193: 三江县水利局 | L193: 2022 | M193: 20220316 | N193: 20220627 | O193: 2022 | P193: 127.3626 | Q193: 127.3626 | AA193: 100 | AB193: 27.3626 | AD193: 是 | AE193: 安全饮水工程 | AF193: 否 | AG193: 公益性资产 | AH193: 未完成结算
A194: 185 | B194: 三江县 | C194: 乡村建设行动 | D194: 农村基础设施（含产业配套基础设施） | E194: 农村供水保障设施建设 | F194: 三江侗族自治县_生活条件改善_三江县梅林乡车寨村平寨屯人饮和大棚蔬菜产业工程 | G194: 5100001095393194 | H194: 车寨村平寨屯人饮高压水塔，300立方。用于人饮和大棚蔬菜喷水150亩，解决群众饮水困难，提高群众种植收入。（人饮和农业产业相结合） | I194: 梅林乡 | J194: 车寨村 | K194: 三江县水利局 | L194: 2022 | M194: 20220316 | N194: 20220620 | O194: 2022 | P194: 59.0747 | Q194: 59.0747 | Z194: 34 | AA194: 25.0747 | AD194: 是 | AE194: 安全饮水工程 | AF194: 是 | AG194: 公益性资产
A195: 186 | B195: 三江县 | C195: 乡村建设行动 | D195: 农村基础设施（含产业配套基础设施） | E195: 农村供水保障设施建设 | F195: 三江侗族自治县_生活条件改善_三江县古宜镇平传村竹坪旧寨屯巩固安全饮水工程 | G195: 5100001095409801 | H195: 新建拦水坝2座、过滤池1座，水源管2800米 | I195: 古宜镇 | J195: 平传村 | K195: 三江县水利局 | L195: 2022 | M195: 20220328 | N195: 20220727 | O195: 2022 | P195: 16.2468 | Q195: 16.2468 | Z195: 16.2468 | AD195: 是 | AE195: 安全饮水工程 | AF195: 是 | AG195: 公益性资产
A196: 187 | B196: 三江县 | C196: 乡村建设行动 | D196: 农村基础设施（含产业配套基础设施） | E196: 农村供水保障设施建设 | F196: 三江侗族自治县_生活条件改善_三江县独峒镇牙寨村牙寨屯巩固安全饮水工程二期 | G196: 5100001095414355 | H196: 新增水源管5500米 | I196: 独峒镇 | J196: 牙寨村 | K196: 三江县水利局 | L196: 2022 | M196: 20220316 | N196: 20220712 | O196: 2022 | P196: 27.4039 | Q196: 27.4039 | Z196: 27.4039 | AD196: 是 | AE196: 安全饮水工程 | AF196: 是 | AG196: 公益性资产
A197: 188 | B197: 三江县 | C197: 乡村建设行动 | D197: 农村基础设施（含产业配套基础设施） | E197: 农村供水保障设施建设 | F197: 三江侗族自治县_生活条件改善_三江县林溪镇高秀村高秀屯巩固安全饮水工程（二期） | G197: 5100001095418083 | H197: 新增顶管150米 | I197: 林溪镇 | J197: 高秀村 | K197: 三江县水利局 | L197: 2022 | M197: 20220330 | N197: 20220508 | O197: 2022 | P197: 13.8244 | Q197: 13.8244 | Z197: 13.8244 | AD197: 是 | AE197: 安全饮水工程 | AF197: 是 | AG197: 公益性资产
A198: 189 | B198: 三江县 | C198: 乡村建设行动 | D198: 农村基础设施（含产业配套基础设施） | E198: 农村供水保障设施建设 | F198: 三江侗族自治县_生活条件改善_三江县独峒镇牙寨村盘贵屯饮水水源工程 | G198: 5100001095452492 | H198: 新建水源拦水坝1座，过滤池1座，水源管887米 | I198: 独峒镇 | J198: 牙寨村 | K198: 三江县水利局 | L198: 2022 | M198: 20220316 | N198: 20220624 | O198: 2022 | P198: 5.9806 | Q198: 5.9806 | Z198: 1.7533 | AB198: 4.2273 | AD198: 是 | AE198: 安全饮水工程 | AF198: 是 | AG198: 公益性资产
A199: 190 | B199: 三江县 | C199: 乡村建设行动 | D199: 农村基础设施（含产业配套基础设施） | E199: 农村供水保障设施建设 | F199: 三江侗族自治县_生活条件改善_三江县八江镇八斗村八斗小屯水源工程 | G199: 5100001122154243 | H199: 新建拦水坝、过滤池各2座、新建水池200立方1座，水源管PE63管3297米 | I199: 八江镇 | J199: 八斗村 | K199: 三江县水利局 | L199: 2022 | M199: 20220622 | N199: 20220930 | O199: 2022 | P199: 45.0842 | Q199: 45.0842 | AB199: 45.0842 | AD199: 是 | AE199: 安全饮水工程 | AF199: 是 | AG199: 公益性资产
A200: 191 | B200: 三江县 | C200: 乡村建设行动 | D200: 农村基础设施（含产业配套基础设施） | E200: 农村供水保障设施建设 | F200: 三江侗族自治县_生活条件改善_三江县同乐乡岑甲村归岳屯饮水安全维修工程 | G200: 5100001122157342 | H200: 维修原有高位水池，水源管PE63管10米，维修DN100镀锌钢管30米 | I200: 同乐苗族乡 | J200: 岑甲村 | K200: 三江县水利局 | L200: 2022 | M200: 20220622 | N200: 20221015 | O200: 2022 | P200: 2.472 | Q200: 2.472 | AB200: 2.472 | AD200: 是 | AE200: 安全饮水工程 | AF200: 否 | AG200: 公益性资产 | AH200: 未完成结算
A201: 192 | B201: 三江县 | C201: 乡村建设行动 | D201: 农村基础设施（含产业配套基础设施） | E201: 农村供水保障设施建设 | F201: 三江侗族自治县_生活条件改善_三江县高基乡白郡村饮水安全维修工程 | G201: 5100001122158108 | H201: 新建水源拦水坝、集水池、粗滤池，de63水源管总长600米，寨上管网重新布置 | I201: 高基瑶族乡 | J201: 白郡村 | K201: 三江县水利局 | L201: 2022 | M201: 20220623 | N201: 20221002 | O201: 2022 | P201: 33.8133 | Q201: 33.8133 | AB201: 33.8133 | AD201: 是 | AE201: 安全饮水工程 | AF201: 是 | AG201: 公益性资产
... 330 more rows
